{"text_format":"3","workbook":"xlsx","n_sheets":8,"sheets":["Titelblatt","Erläuterungen","Endenergiepotenzial","Endenergiebedarf Ist","Endenergiebedarf 2030","Endenergiebedarf 2040","Kommunen","Export"],"not_rendered":{"images":1,"comments":3},"read":"whole","date_system":"1900"}

{"sheet":"Titelblatt","index":0,"n_rows":24,"n_cols":7,"rows_kept":24}
{"$rows_empty":8}
[null,null,"Arbeitshilfe zur Übermittlung der Daten der Wärmeplanung gemäß § 27 Absatz 4 Satz 2 Nr. 1 - 3 KlimaG Baden-Württemberg"]
[]
[null,null,"Die Nutzung dieses Templates ist verpflichtend zur Einreichung der Daten in die vom Land Baden-Württemberg bereitgestellte elektronische Datenbank."]
[null,null,"Änderungen am Template sind nicht zulässig."]
[null,null,"Damit wird eine einfache und sichere Datenverarbeitung sichergestellt."]
[]
[]
[null,null,"Version 1.2",null,"Stand: 07.12.2023",null,"TSt"]
[]
[null,null,"Im Auftrag des Ministeriums für Umwelt, Klima und Energiewirtschaft Baden-Württemberg"]
[]
[]
[null,null,"Erstellt von","KEA Klimaschutz- und Energieagentur Baden-Württemberg GmbH"]
[{"$nulls":3},"Kaiserstr. 94a"]
[{"$nulls":3},"76133 Karlsruhe"]
[{"$nulls":3},"www.kea-bw.de"]

{"sheet":"Erläuterungen","index":1,"n_rows":66,"n_cols":3,"rows_kept":66}
[]
[]
[null,"Erläuterungen / Beschreibungen"]
[]
[null,"Arbeitsblatt Endenergiepotenzial"]
[null,"Grundlage: § 27 Absatz 4 Satz 2 Nr. 3 KlimaG BW"]
[null,"Nutzbares Endenergiepotenzial zur klimaneutralen Wärmeversorgung aus erneuerbaren Energien sowie Abwärme und Kraft-Wärme-Kopplung"]
[]
[null,null,"Diese Eingaben sind verpflichtend auszufüllen"]
[null,null,"Diese Eingaben sind freiwillig auszufüllen"]
[null,null,"automatische Rechenfelder, schreibgeschützt"]
[null,0,"Wenn kein Potenzial verfügbar --> 0 eintragen"]
[]
[null,"Bitte zunächst den offiziellen Namen der Gemeinde, für die Daten übermittelt werden sollen, aus der Klappbox in Zelle A3 auswählen."]
[null,"Manche Gemeinden haben ähnliche Namen. In diesem Fall wurde zwecks Unterscheidung dem offiziellen Gemeindenamen ein Zusatz, wie z.B. \"(Baden)\" oder \"an der …\", hinzugefügt."]
[null,"Bitte achten Sie darauf, die richtige Gemeinde auszuwählen, da ansonsten das Template nicht hochgeladen werden kann."]
[]
[null,"Bitte tragen Sie in Zelle B3  das Jahr der Potenzialermittlung ein!"]
[]
[null,"Alle Eingaben erfolgen in MWh/a."]
[]
[null,"Bitte tragen Sie die nutzbaren Endenergiemengen ein, die nach Ihren Berechnungen maximal aus lokalen erneuerbaren Quellen bereitgestellt werden können."]
[]
[null,"Bitte füllen Sie sofern entsprechende Daten verfügbar sind, auch die grünen Felder aus. "]
[null,"Damit ergibt sich eine genauer Überblick über die insgesamt in Baden-Württemberg verfügbaren, und aus lokaler Sicht nutzbaren erneuerbaren Potenziale."]
[]
[null,"Bitte tragen Sie auch ein Abschätzung des Stromverbrauchs zum Betrieb der Wärmepumpen der jeweiligen Kategorien ein."]
[]
[]
[null,"Arbeitsblatt Endenergiebedarf Ist"]
[null,"Grundlage: § 27 Absatz 4 Satz 2 Nr. 1 KlimaG BW"]
[null,"* Für das Ist-Jahr Endenergiebedarf bzw. -verbrauch für die Wärmeversorgung, aufgeteilt nach Energieträgern und Sektoren"]
[null,"* Für das Ist-Jahr Energieeinsatz zur Wärmeerzeugung in Wärmenetzen"]
[]
[null,null,"Diese Eingaben sind verpflichtend auszufüllen"]
[null,null,"Diese Eingaben sind freiwillig auszufüllen"]
[null,null,"automatische Rechenfelder, schreibgeschützt"]
[]
[null,"Bitte tragen Sie in Zelle A3  das Jahr der Datenerhebung ein!"]
[]
[null,"Mit dem BICO2BW-Tool können gegenwärtig Energie- und Treibhausgasbilanzen bis zum Bilanzjahr 2021 erstellt werden."]
[null,"Die mit dem BICO2BW-Tool ermittelten Ergebnisse entprechen inhaltlich und in ihrer Darstellung den hier angeforderten Daten, müssen aber dennoch manuell in die Arbeitshilfe übertragen werden."]
[]
[null,"Bitte machen Sie auch Angaben zum Stromverbrauch."]
[null,"Bitte tragen Sie den Endenergieverbrauch Wärmenetze in die Zellen C4 bis C7 ein."]
[null,"Bitte machen Sie in Zeile 14 Angaben zum Einsatz der Energieträger und Wärmequellen zur Wärmeerzeugung in Wärmenetzen."]
[null,"Bitte tragen Sie die KWK-Strom- und Wärmeerzeugung pauschal in die Zellen U14 und V14 ein"]
[null,"Fassen Sie dabei alle gegebenenfalls in der Gemeinde vorhandenen Teilnetze zusammen. Eine Angabe für Einzelnetze ist nicht notwendig"]
[]
[null,"Aus Gründen der Vereinheitlichung mit den Szenarien 2030 und 2040 wurden Energieträger in die Ist-Datenerhebung aufgenommen, die gegenwärtig noch wenig genutzt werden."]
[]
[null,"Arbeitsblätter Endenergiebedarf 2030 und 2040"]
[null,"Grundlage: § 27 Absatz 4 Satz 2 Nr. 2 KlimaG BW"]
[null,"* Für die Jahre 2030 und 2040 abgeschätzter Jahresendenergiebedarf für die Wärmeversorgung, aufgeteilt nach Energieträgern und Sektoren"]
[null,"* Für die Jahre 2030 und 2040 abgeschätzter Energieeinsatz zur Wärmeerzeugung in Wärmenetzen"]
[]
[null,null,"Diese Eingaben sind verpflichtend auszufüllen"]
[null,null,"Diese Eingaben sind freiwillig auszufüllen"]
[null,null,"automatische Rechenfelder, schreibgeschützt"]
[]
[null,"Bitte machen Sie auch Angaben zum abgeschätzten Strombedarf."]
[]
[null,"Bitte tragen Sie den Endenergiebedarf Wärmenetze in die Zellen C4 bis C7 ein."]
[null,"Bitte machen Sie in Zeile 14 Angaben zum Einsatz der Energieträger und Wärmequellen zur Wärmeerzeugung in Wärmenetzen."]
[null,"Bitte tragen Sie die KWK-Strom- und Wärmeerzeugung pauschal in die Zellen U14 und V14 ein"]
[null,"Fassen Sie dabei alle gegebenenfalls in der Gemeinde vorhandenen Teilnetze zusammen. Eine Angabe für Einzelnetze ist nicht notwendig"]

{"sheet":"Endenergiepotenzial","index":2,"n_rows":85,"n_cols":4,"rows_kept":85,"merged":[[0,0,0,1]]}
["Nutzbares Endenergiepotenzial\naus erneuerbaren Energien, Abwärme und KWK"]
["Kommune","Jahr"]
[{"$nulls":3},"offiziellen Gemeindenamen aus Drop-Box auswählen und\nJahr der Potenzialermittlung eintragen!"]
[]
["Energieträger","MWh/a"]
["Biomasse"]
["Nachwachsende Rohstoffe (NaWaRo) insgesamt",null,null,"Summe aus Holz und sonstigen nachwachsenden Rohstoffen"]
[]
["davon feste Biomasse (Holz)",null,null,"unter Abzug anderer Nutzungen verfügbares Potenzial"]
["Brennholz (Waldrestholz)"]
["Holzhackschnitzel (Waldrestholz)"]
["Holzhackschnitzel (sonstige Flächen)"]
["Sägereste"]
["Sonstiges Holz außer Altholz"]
[]
["davon Andere NaWaRo",null,null,"unter Abzug anderer Nutzungen verfügbares Potenzial"]
["Gülle"]
["Mais"]
["Raps"]
["Sonstige Feldfrüchte"]
["Kurzumtriebsplantagen"]
["Ernteabfälle feucht"]
["Stroh"]
["Sonstige NaWaRo"]
[]
["Abfälle",null,null,"in lokalen Anlagen genutzter Abfall; nicht der Abfallanfall in der Kommune"]
["Biogener Anteile des Abfalls"]
["Altholz"]
["Sonstige Siedlungsabfälle etc."]
[]
["Klärgas",null,null,"in lokalen Anlagen genutztes Klärgas"]
[]
["Deponiegas",null,null,"in lokalen Anlagen genutztes Deponiegas, das noch mindestens bis 2030 verfügbar ist"]
[]
["Summe KWK-Wärmeerzeugung",null,null,"Summe der mit KWK-Anlagen erzeugten und genutzten Wärme"]
[]
["Solarthermie Dach-Anlagen",null,null,"Nutzbare Anteile zur Deckung des Warmwasserbedarfs und zur Unterstützung der Heizwärme unter Berücksichtigung der PV-Dachflächen "]
[]
["Solarthermie Freiflächen-Anlagen",null,null,"maximal sinnvoller Anteil an Bodenfläche"]
[]
["Oberflächennahe Geothermie (Erdwärme)",null,null,"maximal für den lokalen Bedarf verfügbares Dargebot"]
["Stromverbrauch für Erdwärme-Wärmepumpen",null,null,"ggf. Stromverbrauch in der Energiebilanz berücksichtigen"]
["Erdwärme Erdsonden"]
["Erdwärme Erdkollektoren"]
["Erdwärme Grundwasser"]
[]
["Umweltwärme",null,null,"Dargebot für lokale und regionale Nutzung; Umgebungsluft wird nicht berücksichitgt da im Prinzip unbegrenzt"]
["Stromverbrauch für Umweltwärme-Wärmepumpen",null,null,"ggf. Stromverbrauch in der Energiebilanz berücksichtigen"]
["Umweltwärme Oberflächengewässer (See, Fluss)"]
["Umweltwärme unterirdische Bauwerke"]
[]
["Wärme Tiefe Geothermie",null,null,"Dargebot für lokale und regionale Nutzung; ggf. Stromerzeugung  in Zeile 72 berücksichtigen"]
[]
["Abwasser-Abwärme"]
["Stromverbrauch für Abwasser-Wärmepumpen",null,null,"ggf. Stromverbrauch in der Energiebilanz berücksichtigen"]
[]
["Abwärme aus Industrie und GHD"]
["Stromverbrauch für Abwärme-Wärmepumpen",null,null,"ggf. Stromverbrauch in der Energiebilanz berücksichtigen"]
["Abwärme 45 bis 75°"]
["Abwärme 75 bis 125°"]
["Abwärme 125° bis 500°"]
["Abwärme > 500°"]
[]
["Windenergie",null,null,"maximal realisierbare Anlagen an konkreten Standorten; nicht das Winddargebot"]
[]
["Wasserkraft"]
[]
["PV-Dach-Anlagen",null,null,"unter Berücksichtugung der Dachflächen für Solarthermie für dezentrale Versorgung"]
[]
["PV-Freiflächen-Anlagen",null,null,"maximal sinnvoller Anteil an Bodenfläche"]
[]
["Strom Tiefe Geothermie"]
[]
["Summe KWK-Stromerzeugung",null,null,"Summe des mit KWK-Anlagen erzeugten Stroms"]
[]
[]
[{"$nulls":3},"Diese Eingaben sind verpflichtend auszufüllen"]
[{"$nulls":3},"Diese Eingaben sind freiwillig auszufüllen"]
[{"$nulls":3},"automatische Rechenfelder"]
[null,0,null,"Wenn kein Potenzial verfügbar --> 0 eintragen"]
[]
["Zellen","Kommentar"]
["A1","\"Technisches Potenzial\": theoretisches Potenzial abzüglich technischer, infrastruktureller und ökologischer Einschränkungen sowie zeitlicher und räumlicher Diskrepanzen von Angebot und Nachfrage"]
["A3","offizieller Gemeindename"]
["B3","Jahr der Potenzialermittlung eintrragen!"]

{"sheet":"Endenergiebedarf Ist","index":3,"n_rows":31,"n_cols":24,"rows_kept":31,"merged":[[1,3,1,13],[11,1,11,21],[11,22,11,23]]}
["Endenergiebedarf bzw. -verbrauch MWh/a"]
[{"$f":"+Endenergiepotenzial!A3","v":0},"Endenergiebedarf \n/-verbrauch","Endenergiebedarf \n/-verbrauch","Endenergiebedarf /-verbrauch dezentrale Wärmeversorgung"]
[null,"Strom\n(abzgl. WP-Strom und Direktheizung)","Wärmenetze","Heizöl, fossil","Erdgas, fossil","Wasserstoff, inkl. Beimischung zu Erdgas","Synt. Brennstoffe (PtX)","Solarthermie","Biomasse","Luft-Wärmepumpe (Umweltwärme + WP-Strom)","Erdwärme-Wärmepumpe Umweltwärme + WP-Strom)","Gewässer-Wärmepumpe (Umweltwärme + WP-Strom)","Direktstrom","Feste fossile Brennstoffe","Summe Endenergiebedarf /-verbrauch Wärme"]
["Private Haushalte / Wohnungen (1)",{"$nulls":13},{"$f":"SUM(C4:N4)","v":0}]
["Gewerbe und Sonstiges (2)",{"$nulls":13},{"$f":"SUM(C5:N5)","v":0}]
["Verarbeitendes Gewerbe (3)",{"$nulls":13},0]
["Kommunale Liegenschaften (4)",{"$nulls":13},0]
["Summe",{"$f":"SUM(B4:B7)","v":0},0,0,0,0,0,0,0,0,0,0,0,{"$f":"SUM(N4:N7)","v":0},{"$f":"SUM(O4:O7)","v":0}]
[]
[]
["Energieeinsatz zur Wärmeerzeugung in Wärmenetzen MWh/a"]
[{"$f":"+A2","v":0},"Energieeinsatz (Heizwert) zur Wärmeerzeugung in Wärmenetzen\nabzüglich KWK-Stromerzeugung",{"$nulls":20},"KWK-Erzeugung"]
[{"$f":"+A3","v":0},"Heizöl, fossil","Erdgas, fossil","Steinkohle, Braunkohle","Wasserstoff","Synt. Brennstoffe","Biogas","Klärgas und Deponiegas","Solarthermie","Biomasse","Luft-Wärmepumpe (Umweltwärme + WP-Strom)","Erdwärme-Wärmepumpe (Umweltwärme + WP-Strom)","Gewässer-Wärmepumpe (Umweltwärme + WP-Strom)","Industrielle Abwärme (Niedertemp. + WP-Strom)","Industrielle Abwärme (Hochtemp. direkte Nutzung)","Abwasser-Wärmepumpe (Umweltwärme + WP-Strom)","Tiefe Geothermie","Abfall","EE-Direktstrom","Sonstige fossile Brennstoffe","Sonstige erneuerbare Brennstoffe","Summe Wärmenetz-erzezugung","KWK-Wärme-erzeugung","KWK-Strom-erzeugung"]
[{"$nulls":21},{"$f":"SUM(B14:U14)","v":0}]
[]
[]
[null,null,"Diese Eingaben sind verpflichtend auszufüllen"]
[null,null,"Diese Eingaben sind freiwillig auszufüllen"]
[null,null,"automatische Rechenfelder"]
[]
["Zellen","Kommentar"]
["A1, B2, C2, D-N2, O3","Bei der Energiebilanzierung wird meist vom Endenergieverbrauch statt vom Energiebedarf gesprochen. Siehe z. B. BISKO-Bilanzierungssystematik Kommunal."]
[null,"Energieverbrauch bezeichnet eine gemessene Größe - Verbrauchsmessung. Energiebedarf bezeichnet eine berechnete Größe, z.B. den mit einem Simulationsmodell berechneten Heizenergiebedarf eines Gebäudes."]
[null,"Für die Erstellung der Ist-Bilanz empfehlen wir die Berechnung des Endenergieverbrauchs gemäß BISKO-Standard unter Einbeziehung gemessener Verbrauchswerte (z.B. Daten der Energieversorger)."]
["B4-7","Angaben zum Stromverbrauch sind freiwillig."]
["A2","offizieller Gemeindename, übernommen aus Arbeitsblatt Endenergiepotenzial"]
["A3","Jahr der Datenerhebung eintragen!"]
["A5","Abteilungen A, B und D-U der Klassifizierung der Wirtschaftszweige WZ 2008"]
["A6","Abteilung C der Klassifizierung der Wirtschaftszweige WZ 2008"]
["B-N7","Verbrauch der kommunalen Liegenschaften; Doppelzählung bei Gewerbe und Sonstiges vermeiden"]
["J4-L7, K-M14","Bitte tragen Sie für Wärrmepumpen den Stromverbrauch plus die Energiemenge der eingesetzten Wärmequelle (Luft, Erdwärme, Grundwasser etc.) ein."]

{"sheet":"Endenergiebedarf 2030","index":4,"n_rows":27,"n_cols":24,"rows_kept":27,"merged":[[1,3,1,13],[11,1,11,21],[11,22,11,23]]}
["Endenergiebedarf MWh/a"]
[{"$f":"+Endenergiepotenzial!A3","v":0},"Endenergie- \nbedarf","Endenergie- \nbedarf","Endenergiebedarf dezentrale Wärmeversorgung"]
[2030,"Strom\n(abzgl. WP-Strom und Direktheizung)","Wärmenetze","Heizöl, fossil","Erdgas, fossil","Wasserstoff, inkl. Beimischung zu Erdgas","Synt. Brennstoffe (PtX)","Solarthermie","Biomasse","Luft-Wärmepumpe (Umweltwärme + WP-Strom)","Erdwärme-Wärmepumpe (Umweltwärme + WP-Strom)","Gewässer-Wärmepumpe (Umweltwärme + WP-Strom)","Direktstrom","Feste fossile Brennstoffe","Summe Endenergiebedarf Wärme"]
["Private Haushalte / Wohnungen (1)",{"$nulls":13},{"$f":"SUM(C4:N4)","v":0}]
["Gewerbe und Sonstiges (2)",{"$nulls":13},{"$f":"SUM(C5:N5)","v":0}]
["Verarbeitendes Gewerbe (3)",{"$nulls":13},0]
["Kommunale Liegenschaften (4)",{"$nulls":13},0]
["Summe",{"$f":"SUM(B4:B7)","v":0},0,0,0,0,0,0,0,0,0,0,0,{"$f":"SUM(N4:N7)","v":0},{"$f":"SUM(O4:O7)","v":0}]
[]
[]
["Energieeinsatz zur Wärmeerzeugung in Wärmenetzen MWh/a"]
[{"$f":"+A2","v":0},"Energieeinsatz (Heizwert) zur Wärmeerzeugung in Wärmenetzen\nabzüglich KWK-Stromerzeugung",{"$nulls":20},"KWK-Erzeugung"]
[{"$f":"+A3","v":2030},"Heizöl, fossil","Erdgas, fossil","Steinkohle, Braunkohle","Wasserstoff","Synt. Brennstoffe","Biogas","Klärgas und Deponiegas","Solarthermie","Biomasse","Luft-Wärmepumpe (Umweltwärme + WP-Strom)","Erdwärme-Wärmepumpe (Umweltwärme + WP-Strom)","Gewässer-Wärmepumpe (Umweltwärme + WP-Strom)","Industrielle Abwärme (Niedertemp. + WP-Strom)","Industrielle Abwärme (Hochtemp. direkte Nutzung)","Abwasser-Wärmepumpe (Umweltwärme + WP-Strom)","Tiefe Geothermie","Abfall","EE-Direktstrom","Sonstige fossile Brennstoffe","Sonstige erneuerbare Brennstoffe","Summe Wärmenetz-erzezugung","KWK-Wärme-erzeugung","KWK-Strom-erzeugung"]
[{"$nulls":21},{"$f":"SUM(B14:U14)","v":0}]
[]
[]
[null,null,"Diese Eingaben sind verpflichtend auszufüllen"]
[null,null,"Diese Eingaben sind freiwillig auszufüllen"]
[null,null,"automatische Rechenfelder"]
[]
["Zellen","Kommentar"]
["B4-7","Angaben zum Strombedarf sind freiwillig"]
["A2","offizieller Gemeindename, übernommen aus Arbeitsblatt Endenergiepotenzial"]
["A5","Abteilungen A, B und D-U der Klassifizierung der Wirtschaftszweige WZ 2008"]
["A6","Abteilung C der Klassifizierung der Wirtschaftszweige WZ 2008"]
["B-N7","Bedarf der kommunalen Liegenschaften; Doppelzählung bei Gewerbe und Sonstiges vermeiden"]
["J4-L7, K-M14","Bitte tragen Sie für Wärrmepumpen den Strombedarf plus die Energiemenge der eingesetzten Wärmequelle (Luft, Erdwärme, Grundwasser etc.) ein."]

{"sheet":"Endenergiebedarf 2040","index":5,"n_rows":27,"n_cols":24,"rows_kept":27,"merged":[[1,3,1,13],[11,1,11,21],[11,22,11,23]]}
["Endenergiebedarf MWh/a"]
[{"$f":"+Endenergiepotenzial!A3","v":0},"Endenergie- \nbedarf","Endenergie- \nbedarf","Endenergiebedarf dezentrale Wärmeversorgung"]
[2040,"Strom\n(abzgl. WP-Strom und Direktheizung)","Wärmenetze","Heizöl, fossil","Erdgas, fossil","Wasserstoff, inkl. Beimischung zu Erdgas","Synt. Brennstoffe (PtX)","Solarthermie","Biomasse","Luft-Wärmepumpe (Umweltwärme + WP-Strom)","Erdwärme-Wärmepumpe (Umweltwärme + WP-Strom)","Gewässer-Wärmepumpe (Umweltwärme + WP-Strom)","Direktstrom","Feste fossile Brennstoffe","Summe Endenergiebedarf Wärme"]
["Private Haushalte / Wohnungen (1)",{"$nulls":13},{"$f":"SUM(C4:N4)","v":0}]
["Gewerbe und Sonstiges (2)",{"$nulls":13},{"$f":"SUM(C5:N5)","v":0}]
["Verarbeitendes Gewerbe (3)",{"$nulls":13},0]
["Kommunale Liegenschaften (4)",{"$nulls":13},0]
["Summe",{"$f":"SUM(B4:B7)","v":0},0,0,0,0,0,0,0,0,0,0,0,{"$f":"SUM(N4:N7)","v":0},{"$f":"SUM(O4:O7)","v":0}]
[]
[]
["Energieeinsatz zur Wärmeerzeugung in Wärmenetzen MWh/a"]
[{"$f":"+A2","v":0},"Energieeinsatz (Heizwert) zur Wärmeerzeugung in Wärmenetzen\nabzüglich KWK-Stromerzeugung",{"$nulls":20},"KWK-Erzeugung"]
[{"$f":"+A3","v":2040},"Heizöl, fossil","Erdgas, fossil","Steinkohle, Braunkohle","Wasserstoff","Synt. Brennstoffe","Biogas","Klärgas und Deponiegas","Solarthermie","Biomasse","Luft-Wärmepumpe (Umweltwärme + WP-Strom)","Erdwärme-Wärmepumpe (Umweltwärme + WP-Strom)","Gewässer-Wärmepumpe (Umweltwärme + WP-Strom)","Industrielle Abwärme (Niedertemp. + WP-Strom)","Industrielle Abwärme (Hochtemp. direkte Nutzung)","Abwasser-Wärmepumpe (Umweltwärme + WP-Strom)","Tiefe Geothermie","Abfall","EE-Direktstrom","Sonstige fossile Brennstoffe","Sonstige erneuerbare Brennstoffe","Summe Wärmenetz-erzezugung","KWK-Wärme-erzeugung","KWK-Strom-erzeugung"]
[{"$nulls":21},{"$f":"SUM(B14:U14)","v":0}]
[]
[]
[null,null,"Diese Eingaben sind verpflichtend auszufüllen"]
[null,null,"Diese Eingaben sind freiwillig auszufüllen"]
[null,null,"automatische Rechenfelder"]
[]
["Zellen","Kommentar"]
["B4-7","Angaben zum Strombedarf sind freiwillig"]
["A2","offizieller Gemeindename, übernommen aus Arbeitsblatt Endenergiepotenzial"]
["A5","Abteilungen A, B und D-U der Klassifizierung der Wirtschaftszweige WZ 2008"]
["A6","Abteilung C der Klassifizierung der Wirtschaftszweige WZ 2008"]
["B-N7","Bedarf der kommunalen Liegenschaften; Doppelzählung bei Gewerbe und Sonstiges vermeiden"]
["J4-L7, K-M14","Bitte tragen Sie für Wärrmepumpen den Strombedarf plus die Energiemenge der eingesetzten Wärmequelle (Luft, Erdwärme, Grundwasser etc.) ein."]

{"sheet":"Kommunen","index":6,"n_rows":1102,"n_cols":3,"rows_kept":1102,"hidden":true}
["Eindeutige Namen der Kommunen","GKZ","Einige Kommunen haben den gleichen Ortsnamen, deswegen wurden die Landkreise angefügt"]
["Aach, Stadt",335001]
["Aalen, Stadt",136088]
["Abstatt",125001]
["Abtsgmünd",136002]
["Achberg",436001]
["Achern, Stadt",317001]
["Achstetten",426001]
["Adelberg",117001]
["Adelmannsfelden",136003]
["Adelsheim, Stadt",225001]
["Affalterbach",118001]
["Aglasterhausen",225002]
["Ahorn",128138]
["Aichelberg",117002]
["Aichhalden",325001]
["Aichstetten",436003]
["Aichtal, Stadt",116081]
["Aichwald",116076]
["Aidlingen",115001]
["Aitern",336004]
["Aitrach",436004]
["Albbruck",337002]
["Albershausen",117003]
["Albstadt, Stadt",417079]
["Aldingen",327002]
["Alfdorf",119001]
["Allensbach",335002]
["Alleshausen",426005]
["Allmannsweiler",426006]
["Allmendingen",425002]
["Allmersbach im Tal",119003]
["Alpirsbach, Stadt",237002]
["Altbach",116004]
["Altdorf_BB",115002]
["Altdorf_ES",116005]
["Altenriet",116006]
["Altensteig, Stadt",235006]
["Altheim (Alb)",425005]
["Altheim_BC",426008]
["Altheim_UL",425004]
["Althengstett",235007]
["Althütte",119004]
["Altlußheim",226003]
["Altshausen",436005]
["Ammerbuch",416048]
["Amstetten",425008]
["Amtzell",436006]
["Angelbachtal",226102]
["Appenweier",317005]
["Argenbühl",436094]
["Aspach",119087]
["Asperg, Stadt",118003]
["Assamstadt",128006]
["Asselfingen",425011]
["Attenweiler",426011]
["Au",315003]
["Au am Rhein",216002]
["Auenwald",119006]
["Auggen",315004]
["Aulendorf, Stadt",436008]
["Backnang, Stadt",119008]
["Bad Bellingen",336006]
["Bad Boll",117012]
["Bad Buchau, Stadt",426013]
["Bad Ditzenbach",117006]
["Bad Dürrheim, Stadt",326003]
["Bad Friedrichshall, Stadt",125005]
["Bad Herrenalb, Stadt",235033]
["Bad Krozingen, Stadt",315006]
["Bad Liebenzell, Stadt",235008]
["Bad Mergentheim, Stadt",128007]
["Bad Peterstal-Griesbach",317008]
["Bad Rappenau, Stadt",125006]
["Bad Rippoldsau-Schapbach",237075]
["Bad Säckingen, Stadt",337096]
["Bad Saulgau, Stadt",437100]
["Bad Schönborn",215100]
["Bad Schussenried, Stadt",426014]
["Bad Teinach-Zavelstein, Stadt",235084]
["Bad Überkingen",117007]
["Bad Urach, Stadt",415078]
["Bad Waldsee, Stadt",436009]
["Bad Wildbad, Stadt",235079]
["Bad Wimpfen, Stadt",125007]
["Bad Wurzach, Stadt",436010]
["Baden-Baden, Stadt",211000]
["Badenweiler",315007]
["Bahlingen am Kaiserstuhl",316002]
["Baienfurt",436011]
["Baiersbronn",237004]
["Baindt",436012]
["Balgheim",327005]
["Balingen, Stadt",417002]
["Ballendorf",425013]
["Ballrechten-Dottingen",315008]
["Baltmannsweiler",116007]
["Balzheim",425140]
["Bammental",226006]
["Bärenthal",327004]
["Bartholomä",136007]
["Beilstein, Stadt",125008]
["Beimerstetten",425014]
["Bempflingen",116008]
["Benningen am Neckar",118006]
["Berg",436013]
["Bergatreute",436014]
["Berghaupten",317009]
["Berghülen",425017]
["Berglen",119089]
["Berkheim",426019]
["Bermatingen",435005]
["Bernau im Schwarzwald",337013]
["Bernstadt",425019]
["Besigheim, Stadt",118007]
["Betzenweiler",426020]
["Beuren",116011]
["Beuron",437005]
["Biberach",317011]
["Biberach an der Riß, Stadt",426021]
["Biederbach",316003]
["Bietigheim",216005]
["Bietigheim-Bissingen, Stadt",118079]
["Billigheim",225009]
["Binau",225010]
["Bingen",437008]
["Binzen",336008]
["Birenbach",117009]
["Birkenfeld",236004]
["Bischweier",216006]
["Bisingen",417008]
["Bissingen an der Teck",116012]
["Bitz",417010]
["Blaubeuren, Stadt",425020]
["Blaufelden",127008]
["Blaustein",425141]
["Blumberg, Stadt",326005]
["Böbingen an der Rems",136009]
["Böblingen, Stadt",115003]
["Bodelshausen",416006]
["Bodman-Ludwigshafen",335098]
["Bodnegg",436018]
["Böhmenkirch",117010]
["Böllen",336010]
["Bollschweil",315014]
["Boms",436019]
["Bondorf",115004]
["Bonndorf im Schwarzwald, Stadt",337022]
["Bönnigheim, Stadt",118010]
["Bopfingen, Stadt",136010]
["Börslingen",425022]
["Börtlingen",117011]
["Bösingen",325009]
["Böttingen",327006]
["Bötzingen",315013]
["Boxberg, Stadt",128014]
["Brackenheim, Stadt",125013]
["Bräunlingen, Stadt",326006]
["Braunsbach",127009]
["Breisach am Rhein, Stadt",315015]
["Breitingen",425024]
["Breitnau",315016]
["Bretten, Stadt",215007]
["Bretzfeld",126011]
["Brigachtal",326075]
["Bruchsal, Stadt",215009]
["Brühl",226009]
["Bubsheim",327007]
["Buchen (Odenwald), Stadt",225014]
["Buchenbach",315020]
["Buchheim",327008]
["Buggingen",315022]
["Bühl, Stadt",216007]
["Bühlertal",216008]
["Bühlertann",127012]
["Bühlerzell",127013]
["Burgrieden",426028]
["Burgstetten",119018]
["Burladingen, Stadt",417013]
["Büsingen am Hochrhein",335015]
["Calw, Stadt",235085]
["Cleebronn",125017]
["Crailsheim, Stadt",127014]
["Creglingen, Stadt",128020]
["Dachsberg (Südschwarzwald)",337027]
["Daisendorf",435010]
["Dauchingen",326010]
["Dautmergen",417014]
["Deckenpfronn",115010]
["Deggenhausertal",435067]
["Deggingen",117014]
["Deilingen",327009]
["Deißlingen",325072]
["Deizisau",116014]
["Denkendorf",116015]
["Denkingen",327010]
["Denzlingen",316009]
["Dettenhausen",416009]
["Dettenheim",215111]
["Dettighofen",337030]
["Dettingen an der Erms",415014]
["Dettingen an der Iller",426031]
["Dettingen unter Teck",116016]
["Dielheim",226010]
["Dietenheim, Stadt",425028]
["Dietingen",325011]
["Dischingen",135010]
["Ditzingen, Stadt",118011]
["Dobel",235018]
["Dogern",337032]
["Donaueschingen, Stadt",326012]
["Donzdorf, Stadt",117015]
["Dormettingen",417015]
["Dornhan, Stadt",325012]
["Dornstadt",425031]
["Dornstetten, Stadt",237019]
["Dörzbach",126020]
["Dossenheim",226012]
["Dotternhausen",417016]
["Drackenstein",117016]
["Dunningen",325014]
["Durbach",317021]
["Dürbheim",327011]
["Durchhausen",327012]
["Durlangen",136015]
["Dürmentingen",426035]
["Durmersheim",216009]
["Dürnau_BC",426036]
["Dürnau_GP",117017]
["Dußlingen",416011]
["Ebenweiler",436024]
["Eberbach, Stadt",226013]
["Eberdingen",118012]
["Eberhardzell",426038]
["Ebersbach an der Fils, Stadt",117018]
["Ebersbach-Musbach",436093]
["Eberstadt",125021]
["Ebhausen",235020]
["Ebringen",315028]
["Edingen-Neckarhausen",226105]
["Efringen-Kirchen",336014]
["Egenhausen",235022]
["Egesheim",327013]
["Eggenstein-Leopoldshafen",215102]
["Eggingen",337124]
["Ehingen (Donau), Stadt",425033]
["Ehningen",115013]
["Ehrenkirchen",315131]
["Eichstegen",436027]
["Eichstetten am Kaiserstuhl",315030]
["Eigeltingen",335021]
["Eimeldingen",336019]
["Eisenbach (Hochschwarzwald)",315031]
["Eisingen",236011]
["Eislingen/Fils, Stadt",117019]
["Elchesheim-Illingen",216012]
["Ellenberg",136018]
["Ellhofen",125024]
["Ellwangen (Jagst), Stadt",136019]
["Elzach, Stadt",316010]
["Elztal",225117]
["Emeringen",425035]
["Emerkingen",425036]
["Emmendingen, Stadt",316011]
["Emmingen-Liptingen",327057]
["Empfingen",237024]
["Endingen am Kaiserstuhl, Stadt",316012]
["Engelsbrand",236013]
["Engen, Stadt",335022]
["Engstingen",415089]
["Eningen unter Achalm",415019]
["Enzklösterle",235025]
["Epfenbach",226017]
["Epfendorf",325015]
["Eppelheim, Stadt",226018]
["Eppingen, Stadt",125026]
["Erbach, Stadt",425039]
["Erdmannhausen",118014]
["Eriskirch",435013]
["Erkenbrechtsweiler",116018]
["Erlenbach",125027]
["Erlenmoos",426043]
["Erligheim",118015]
["Erolzheim",426044]
["Ertingen",426045]
["Eschach",136020]
["Eschbach",315033]
["Eschbronn",325071]
["Eschelbronn",226020]
["Eschenbach",117020]
["Essingen",136021]
["Esslingen am Neckar, Stadt",116019]
["Ettenheim, Stadt",317026]
["Ettlingen, Stadt",215017]
["Eutingen im Gäu",237027]
["Fahrenbach",225024]
["Feldberg (Schwarzwald)",315037]
["Fellbach, Stadt",119020]
["Fichtenau",127102]
["Fichtenberg",127023]
["Filderstadt, Stadt",116077]
["Fischerbach",317029]
["Fischingen",336024]
["Flein",125030]
["Fleischwangen",436032]
["Fluorn-Winzeln",325070]
["Forbach",216013]
["Forchheim",316013]
["Forchtenberg, Stadt",126028]
["Forst",215021]
["Frankenhardt",127103]
["Freiamt",316054]
["Freiberg am Neckar, Stadt",118078]
["Freiburg im Breisgau, Stadt",311000]
["Freudenberg, Stadt",128039]
["Freudenstadt, Stadt",237028]
["Freudental",118016]
["Frickenhausen",116020]
["Frickingen",435015]
["Fridingen an der Donau, Stadt",327016]
["Friedenweiler",315039]
["Friedrichshafen, Stadt",435016]
["Friesenheim",317031]
["Friolzheim",236019]
["Frittlingen",327017]
["Fröhnd",336025]
["Fronreute",436096]
["Furtwangen im Schwarzwald, Stadt",326017]
["Gaggenau, Stadt",216015]
["Gaiberg",226022]
["Gaienhofen",335025]
["Gaildorf, Stadt",127025]
["Gailingen am Hochrhein",335026]
["Gammelshausen",117023]
["Gammertingen, Stadt",437031]
["Gärtringen",115015]
["Gäufelden",115016]
["Gechingen",235029]
["Geisingen, Stadt",327018]
["Geislingen an der Steige, Stadt",117024]
["Geislingen, Stadt",417022]
["Gemmingen",125034]
["Gemmrigheim",118018]
["Gengenbach, Stadt",317034]
["Gerabronn, Stadt",127032]
["Gerlingen, Stadt",118019]
["Gernsbach, Stadt",216017]
["Gerstetten",135015]
["Giengen an der Brenz, Stadt",135016]
["Gingen an der Fils",117025]
["Glatten",237030]
["Glottertal",315041]
["Göggingen",136024]
["Gomadingen",415027]
["Gomaringen",416015]
["Gondelsheim",215025]
["Göppingen, Stadt",117026]
["Görwihl",337038]
["Gosheim",327019]
["Gottenheim",315043]
["Gottmadingen",335028]
["Graben-Neudorf",215099]
["Grabenstetten",415028]
["Grafenau",115054]
["Grafenberg",415029]
["Grafenhausen",337039]
["Grenzach-Wyhlen",336105]
["Griesingen",425050]
["Grömbach",237032]
["Großbettlingen",116022]
["Großbottwar, Stadt",118021]
["Grosselfingen",417023]
["Großerlach",119024]
["Großrinderfeld",128045]
["Gruibingen",117028]
["Grundsheim",425052]
["Grünkraut",436039]
["Grünsfeld, Stadt",128047]
["Gschwend",136027]
["Guggenhausen",436040]
["Güglingen, Stadt",125038]
["Gundelfingen",315047]
["Gundelsheim, Stadt",125039]
["Gunningen",327020]
["Gutach (Schwarzwaldbahn)",317039]
["Gutach im Breisgau",316014]
["Gütenbach",326020]
["Gutenzell-Hürbel",426135]
["Häg-Ehrsberg",336106]
["Hagnau am Bodensee",435018]
["Haigerloch, Stadt",417025]
["Haiterbach, Stadt",235032]
["Hambrücken",215029]
["Hardheim",225032]
["Hardt",325024]
["Hardthausen am Kocher",125111]
["Hartheim",315048]
["Hasel",336034]
["Haslach im Kinzigtal, Stadt",317040]
["Haßmersheim",225033]
["Hattenhofen",117029]
["Hausach, Stadt",317041]
["Hausen am Bussen",425055]
["Hausen am Tann",417029]
["Hausen im Wiesental",336036]
["Hausen ob Verena",327023]
["Häusern",337045]
["Hayingen, Stadt",415034]
["Hechingen, Stadt",417031]
["Heddesbach",226027]
["Heddesheim",226028]
["Heidelberg, Stadt",221000]
["Heidenheim an der Brenz, Stadt",135019]
["Heilbronn, Stadt",121000]
["Heiligenberg",435020]
["Heiligkreuzsteinach",226029]
["Heimsheim, Stadt",236025]
["Heiningen",117030]
["Heitersheim, Stadt",315050]
["Helmstadt-Bargen",226106]
["Hemmingen",118027]
["Hemsbach, Stadt",226031]
["Herbertingen",437044]
["Herbolzheim, Stadt",316017]
["Herbrechtingen, Stadt",135020]
["Herdwangen-Schönach",437124]
["Hermaringen",135021]
["Heroldstatt",425139]
["Herrenberg, Stadt",115021]
["Herrischried",337049]
["Hessigheim",118028]
["Hettingen, Stadt",437047]
["Heubach, Stadt",136028]
["Heuchlingen",136029]
["Heuweiler",315051]
["Hildrizhausen",115022]
["Hilzingen",335035]
["Hinterzarten",315052]
["Hirrlingen",416018]
["Hirschberg an der Bergstraße",226107]
["Hochdorf_BC",426058]
["Hochdorf_ES",116027]
["Höchenschwand",337051]
["Hockenheim, Stadt",226032]
["Höfen an der Enz",235035]
["Hofstetten",317046]
["Hohberg",317047]
["Hohenfels",335096]
["Hohenstadt",117031]
["Hohenstein",415090]
["Hohentengen",437053]
["Hohentengen am Hochrhein",337053]
["Holzgerlingen, Stadt",115024]
["Holzkirch",425062]
["Holzmaden",116029]
["Höpfingen",225039]
["Horb am Neckar, Stadt",237040]
["Horben",315056]
["Horgenzell",436095]
["Hornberg, Stadt",317051]
["Hoßkirch",436047]
["Hüffenhardt",225042]
["Hüfingen, Stadt",326027]
["Hügelsheim",216022]
["Hülben",415039]
["Hüttisheim",425064]
["Hüttlingen",136033]
["Ibach",337059]
["Iffezheim",216023]
["Igersheim",128058]
["Iggingen",136034]
["Ihringen",315059]
["Illerkirchberg",425137]
["Illerrieden",425066]
["Illingen",236028]
["Illmensee",437056]
["Ilsfeld",125046]
["Ilshofen, Stadt",127043]
["Ilvesheim",226036]
["Immendingen",327025]
["Immenstaad am Bodensee",435024]
["Ingelfingen, Stadt",126039]
["Ingersheim",118077]
["Ingoldingen",426062]
["Inzigkofen",437059]
["Inzlingen",336043]
["Irndorf",327027]
["Isny im Allgäu, Stadt",436049]
["Ispringen",236030]
["Ittlingen",125047]
["Jagsthausen",125048]
["Jagstzell",136035]
["Jestetten",337060]
["Jettingen",115053]
["Jungingen",417036]
["Kaisersbach",119037]
["Kämpfelbach",236074]
["Kandern, Stadt",336045]
["Kanzach",426064]
["Kappel-Grafenhausen",317152]
["Kappelrodeck",317056]
["Karlsbad",215096]
["Karlsdorf-Neuthard",215103]
["Karlsruhe, Stadt",212000]
["Kehl, Stadt",317057]
["Keltern",236070]
["Kenzingen, Stadt",316020]
["Kernen im Remstal",119093]
["Ketsch",226037]
["Kieselbronn",236031]
["Kippenheim",317059]
["Kirchardt",125049]
["Kirchberg an der Iller",426065]
["Kirchberg an der Jagst, Stadt",127046]
["Kirchberg an der Murr",119038]
["Kirchdorf an der Iller",426066]
["Kirchentellinsfurt",416022]
["Kirchheim am Neckar",118040]
["Kirchheim am Ries",136037]
["Kirchheim unter Teck, Stadt",116033]
["Kirchzarten",315064]
["Kißlegg",436052]
["Kleines Wiesental",336107]
["Klettgau",337062]
["Knittlingen, Stadt",236033]
["Kohlberg",116036]
["Kolbingen",327030]
["Köngen",116035]
["Königheim",128061]
["Königsbach-Stein",236076]
["Königsbronn",135025]
["Königseggwald",436053]
["Königsfeld im Schwarzwald",326031]
["Königsheim",327029]
["Konstanz, Universitätsstadt",335043]
["Korb",119041]
["Korntal-Münchingen, Stadt",118080]
["Kornwestheim, Stadt",118046]
["Kraichtal, Stadt",215097]
["Krauchenwies",437065]
["Krautheim, Stadt",126045]
["Kreßberg",127101]
["Kressbronn am Bodensee",435029]
["Kronau",215039]
["Kuchen",117033]
["Külsheim, Stadt",128064]
["Künzelsau, Stadt",126046]
["Kupferzell",126047]
["Kuppenheim, Stadt",216024]
["Kürnbach",215040]
["Küssaberg",337125]
["Kusterdingen",416023]
["Ladenburg, Stadt",226038]
["Lahr/Schwarzwald, Stadt",317065]
["Laichingen, Stadt",425071]
["Langenargen",435030]
["Langenau, Stadt",425072]
["Langenbrettach",125113]
["Langenburg, Stadt",127047]
["Langenenslingen",426067]
["Lauchheim, Stadt",136038]
["Lauchringen",337065]
["Lauda-Königshofen, Stadt",128139]
["Laudenbach",226040]
["Lauf",317068]
["Laufenburg (Baden), Stadt",337066]
["Lauffen am Neckar, Stadt",125056]
["Laupheim, Stadt",426070]
["Lautenbach",317067]
["Lauterach",425073]
["Lauterbach",325036]
["Lauterstein, Stadt",117061]
["Lehrensteinsfeld",125057]
["Leibertingen",437072]
["Leimen, Stadt",226041]
["Leinfelden-Echterdingen, Stadt",116078]
["Leingarten",125058]
["Leinzell",136040]
["Lenningen",116079]
["Lenzkirch",315068]
["Leonberg, Stadt",115028]
["Leutenbach",119042]
["Leutkirch im Allgäu, Stadt",436055]
["Lichtenau, Stadt",216028]
["Lichtenstein",415092]
["Lichtenwald",116037]
["Limbach",225052]
["Linkenheim-Hochstetten",215105]
["Lobbach",226104]
["Löchgau",118047]
["Loffenau",216029]
["Löffingen, Stadt",315070]
["Lonsee",425075]
["Lorch, Stadt",136042]
["Lörrach, Stadt",336050]
["Loßburg",237045]
["Lottstetten",337070]
["Löwenstein, Stadt",125059]
["Ludwigsburg, Stadt",118048]
["Magstadt",115029]
["Mahlberg, Stadt",317073]
["Mahlstetten",327033]
["Mainhardt",127052]
["Malsburg-Marzell",336104]
["Malsch_HD",226046]
["Malsch_KA",215046]
["Malterdingen",316024]
["Mannheim, Universitätsstadt",222000]
["Marbach am Neckar, Stadt",118049]
["March",315132]
["Markdorf, Stadt",435034]
["Markgröningen, Stadt",118050]
["Marxzell",215047]
["Maselheim",426071]
["Massenbachhausen",125061]
["Mauer",226048]
["Maulbronn, Stadt",236038]
["Maulburg",336057]
["Meckenbeuren",435035]
["Meckesheim",226049]
["Meersburg, Stadt",435036]
["Mehrstetten",415048]
["Meißenheim",317075]
["Mengen, Stadt",437076]
["Merdingen",315072]
["Merklingen",425079]
["Merzhausen",315073]
["Meßkirch, Stadt",437078]
["Meßstetten, Stadt",417044]
["Metzingen, Stadt",415050]
["Michelbach an der Bilz",127056]
["Michelfeld",127059]
["Mietingen",426073]
["Mittelbiberach",426074]
["Möckmühl, Stadt",125063]
["Mögglingen",136043]
["Möglingen",118051]
["Mönchweiler",326037]
["Mönsheim",236039]
["Moos",335055]
["Moosburg",426078]
["Mosbach, Stadt",225058]
["Mössingen, Stadt",416025]
["Mötzingen",115034]
["Mudau",225060]
["Muggensturm",216033]
["Mühlacker, Stadt",236040]
["Mühlenbach",317078]
["Mühlhausen",226054]
["Mühlhausen im Täle",117035]
["Mühlhausen-Ehingen",335097]
["Mühlheim an der Donau, Stadt",327036]
["Mühlingen",335057]
["Mulfingen",126056]
["Müllheim, Stadt",315074]
["Mundelsheim",118053]
["Munderkingen, Stadt",425081]
["Münsingen, Stadt",415053]
["Münstertal/Schwarzwald",315130]
["Murg",337076]
["Murr",118054]
["Murrhardt, Stadt",119044]
["Mutlangen",136044]
["Nagold, Stadt",235046]
["Nattheim",135026]
["Neckarbischofsheim, Stadt",226055]
["Neckargemünd, Stadt",226056]
["Neckargerach",225064]
["Neckarsulm, Stadt",125065]
["Neckartailfingen",116041]
["Neckartenzlingen",116042]
["Neckarwestheim",125066]
["Neckarzimmern",225067]
["Neenstetten",425083]
["Nehren",416026]
["Neidenstein",226058]
["Neidlingen",116043]
["Nellingen",425084]
["Nerenstetten",425085]
["Neresheim, Stadt",136045]
["Neubulach, Stadt",235047]
["Neudenau, Stadt",125068]
["Neuenburg am Rhein, Stadt",315076]
["Neuenbürg, Stadt",236043]
["Neuenstadt am Kocher, Stadt",125069]
["Neuenstein, Stadt",126058]
["Neuffen, Stadt",116046]
["Neufra",437082]
["Neuhausen",236044]
["Neuhausen auf den Fildern",116047]
["Neuhausen ob Eck",327038]
["Neukirch",435042]
["Neuler",136046]
["Neulingen",236073]
["Neulußheim",226059]
["Neunkirchen",225068]
["Neuried",317151]
["Neustetten",416049]
["Neuweiler",235050]
["Niedereschach",326041]
["Niedernhall, Stadt",126060]
["Niederstetten, Stadt",128082]
["Niederstotzingen, Stadt",135027]
["Niefern-Öschelbronn",236046]
["Nordheim",125074]
["Nordrach",317085]
["Notzingen",116048]
["Nufringen",115037]
["Nürtingen, Stadt",116049]
["Nusplingen",417045]
["Nußloch",226060]
["Oberboihingen",116050]
["Oberderdingen",215059]
["Oberdischingen",425088]
["Obergröningen",136049]
["Oberharmersbach",317088]
["Oberhausen-Rheinhausen",215107]
["Oberkirch, Stadt",317089]
["Oberkochen, Stadt",136050]
["Obermarchtal",425090]
["Oberndorf am Neckar, Stadt",325045]
["Obernheim",417047]
["Oberreichenbach",235055]
["Oberried",315084]
["Oberriexingen, Stadt",118059]
["Oberrot",127062]
["Obersontheim",127063]
["Oberstadion",425091]
["Oberstenfeld",118060]
["Obersulm",125110]
["Oberteuringen",435045]
["Oberwolfach",317093]
["Obrigheim",225074]
["Ochsenhausen, Stadt",426087]
["Oedheim",125078]
["Offenau",125079]
["Offenburg, Stadt",317096]
["Ofterdingen",416031]
["Oftersheim",226062]
["Oggelshausen",426090]
["Ohlsbach",317097]
["Ohmden",116053]
["Öhningen",335061]
["Öhringen, Stadt",126066]
["Ölbronn-Dürrn",236075]
["Öllingen",425092]
["Öpfingen",425093]
["Oppenau, Stadt",317098]
["Oppenweiler",119053]
["Orsingen-Nenzingen",335099]
["Ortenberg",317100]
["Ostelsheim",235057]
["Osterburken, Stadt",225075]
["Ostfildern, Stadt",116080]
["Ostrach",437086]
["Östringen, Stadt",215064]
["Ötigheim",216039]
["Ötisheim",236050]
["Ottenbach",117037]
["Ottenhöfen im Schwarzwald",317102]
["Ottersweier",216041]
["Owen, Stadt",116054]
["Owingen",435047]
["Pfaffenhofen",125081]
["Pfaffenweiler",315089]
["Pfalzgrafenweiler",237054]
["Pfedelbach",126069]
["Pfinztal",215101]
["Pforzheim, Stadt",231000]
["Pfronstetten",415058]
["Pfullendorf, Stadt",437088]
["Pfullingen, Stadt",415059]
["Philippsburg, Stadt",215066]
["Plankstadt",226063]
["Pleidelsheim",118063]
["Pliezhausen",415060]
["Plochingen, Stadt",116056]
["Plüderhausen",119055]
["Radolfzell am Bodensee, Stadt",335063]
["Rainau",136089]
["Rammingen",425097]
["Rangendingen",417051]
["Rastatt, Stadt",216043]
["Ratshausen",417052]
["Rauenberg, Stadt",226065]
["Ravensburg, Stadt",436064]
["Ravenstein, Stadt",225114]
["Rechberghausen",117038]
["Rechtenstein",425098]
["Reichartshausen",226066]
["Reichenau",335066]
["Reichenbach am Heuberg",327040]
["Reichenbach an der Fils",116058]
["Reilingen",226068]
["Remchingen",236071]
["Remseck am Neckar, Stadt",118081]
["Remshalden",119090]
["Renchen, Stadt",317110]
["Renningen, Stadt",115041]
["Renquishausen",327041]
["Reute",316036]
["Reutlingen, Stadt",415061]
["Rheinau, Stadt",317153]
["Rheinfelden (Baden), Stadt",336069]
["Rheinhausen",316053]
["Rheinmünster",216063]
["Rheinstetten, Stadt",215108]
["Rickenbach",337090]
["Riederich",415062]
["Riedhausen",436067]
["Riedlingen, Stadt",426097]
["Riegel am Kaiserstuhl",316037]
["Rielasingen-Worblingen",335100]
["Riesbürg",136087]
["Rietheim-Weilheim",327056]
["Ringsheim",317113]
["Rohrdorf",235060]
["Roigheim",125084]
["Römerstein",415088]
["Rosenberg",136060]
["Rosenberg (Baden)",225082]
["Rosenfeld, Stadt",417054]
["Rosengarten",127100]
["Rot am See",127071]
["Rot an der Rot",426100]
["Rottenacker",425104]
["Rottenburg am Neckar, Stadt",416036]
["Rottweil, Stadt",325049]
["Rudersberg",119061]
["Rümmingen",336073]
["Ruppertshofen",136061]
["Rust",317114]
["Rutesheim, Stadt",115042]
["Sachsenheim, Stadt",118076]
["Salach",117042]
["Salem",435052]
["Sandhausen",226076]
["Sasbach",317116]
["Sasbach am Kaiserstuhl",316038]
["Sasbachwalden",317118]
["Satteldorf",127073]
["Sauldorf",437123]
["Schallbach",336075]
["Schallstadt",315098]
["Schechingen",136062]
["Scheer, Stadt",437101]
["Schefflenz",225115]
["Schelklingen, Stadt",425108]
["Schemmerhofen",426134]
["Schenkenzell",325050]
["Schiltach, Stadt",325051]
["Schlaitdorf",116063]
["Schlat",117043]
["Schliengen",336078]
["Schlier",436069]
["Schlierbach",117044]
["Schluchsee",315102]
["Schnürpflingen",425110]
["Schömberg, Stadt",417057]
["Schömberg_CW",235065]
["Schonach im Schwarzwald",326055]
["Schönaich",115044]
["Schönau im Schwarzwald, Stadt",336079]
["Schönau, Stadt",226080]
["Schönbrunn",226081]
["Schönenberg",336080]
["Schöntal",126072]
["Schönwald im Schwarzwald",326054]
["Schopfheim, Stadt",336081]
["Schopfloch",237061]
["Schorndorf, Stadt",119067]
["Schramberg, Stadt",325053]
["Schriesheim, Stadt",226082]
["Schrozberg, Stadt",127075]
["Schuttertal",317121]
["Schutterwald",317122]
["Schwäbisch Gmünd, Stadt",136065]
["Schwäbisch Hall, Stadt",127076]
["Schwaigern, Stadt",125086]
["Schwaikheim",119068]
["Schwanau",317150]
["Schwarzach",225116]
["Schwendi",426108]
["Schwenningen",437102]
["Schwetzingen, Stadt",226084]
["Schwieberdingen",118067]
["Schwörstadt",336082]
["Seckach",225091]
["Seebach",317126]
["Seekirch",426109]
["Seelbach",317127]
["Seewald",237073]
["Seitingen-Oberflacht",327055]
["Sersheim",118068]
["Setzingen",425112]
["Sexau",316039]
["Siegelsbach",125087]
["Sigmaringen, Stadt",437104]
["Sigmaringendorf",437105]
["Simmersfeld",235066]
["Simmozheim",235067]
["Simonswald",316042]
["Sindelfingen, Stadt",115045]
["Singen (Hohentwiel), Stadt",335075]
["Sinsheim, Stadt",226085]
["Sinzheim",216049]
["Sipplingen",435053]
["Sölden",315107]
["Sonnenbühl",415091]
["Sontheim an der Brenz",135031]
["Spaichingen, Stadt",327046]
["Spechbach",226086]
["Spiegelberg",119069]
["Spraitbach",136066]
["St. Blasien, Stadt",337097]
["St. Georgen im Schwarzwald, Stadt",326052]
["St. Johann",415093]
["St. Leon-Rot",226103]
["St. Märgen",315094]
["St. Peter",315095]
["Staig",425138]
["Starzach",416050]
["Staufen im Breisgau, Stadt",315108]
["Stegen",315109]
["Steinach",317129]
["Steinen",336084]
["Steinenbronn",115046]
["Steinhausen an der Rottum",426113]
["Steinheim am Albuch",135032]
["Steinheim an der Murr, Stadt",118070]
["Steinmauern",216052]
["Steißlingen",335077]
["Sternenfels",236061]
["Stetten",435054]
["Stetten am kalten Markt",437107]
["Stimpfach",127104]
["Stockach, Stadt",335079]
["Stödtlen",136068]
["Straßberg",417063]
["Straubenhardt",236072]
["Stühlingen, Stadt",337106]
["Stutensee, Stadt",215109]
["Stuttgart, Landeshauptstadt",111000]
["Sulz am Neckar, Stadt",325057]
["Sulzbach an der Murr",119075]
["Sulzbach-Laufen",127079]
["Sulzburg, Stadt",315111]
["Sulzfeld",215082]
["Süßen, Stadt",117049]
["Täferrot",136070]
["Talheim HN",125094]
["Talheim TUT",327048]
["Tamm",118071]
["Tannhausen",136071]
["Tannheim",426117]
["Tauberbischofsheim, Stadt",128115]
["Tengen, Stadt",335080]
["Teningen",316043]
["Tettnang, Stadt",435057]
["Tiefenbach",426118]
["Tiefenbronn",236062]
["Titisee-Neustadt, Stadt",315113]
["Todtmoos",337108]
["Todtnau, Stadt",336087]
["Triberg im Schwarzwald, Stadt",326060]
["Trochtelfingen, Stadt",415073]
["Trossingen, Stadt",327049]
["Tübingen, Universitätsstadt",416041]
["Tunau",336089]
["Tuningen",326061]
["Tuttlingen, Stadt",327050]
["Überlingen, Stadt",435059]
["Ubstadt-Weiher",215084]
["Uhingen, Stadt",117051]
["Uhldingen-Mühlhofen",435066]
["Ühlingen-Birkendorf",337128]
["Ulm, Universitätsstadt",421000]
["Umkirch",315115]
["Ummendorf",426120]
["Unlingen",426121]
["Untereisesheim",125096]
["Unterensingen",116068]
["Untergruppenbach",125098]
["Unterkirnach",326065]
["Untermarchtal",425123]
["Untermünkheim",127086]
["Unterreichenbach",235073]
["Unterschneidheim",136075]
["Unterstadion",425124]
["Unterwachingen",425125]
["Unterwaldhausen",436077]
["Urbach",119076]
["Uttenweiler",426124]
["Utzenfeld",336090]
["Vaihingen an der Enz, Stadt",118073]
["Vellberg, Stadt",127089]
["Veringenstadt, Stadt",437114]
["Villingendorf",325060]
["Villingen-Schwenningen, Stadt",326074]
["Vogt",436078]
["Vogtsburg im Kaiserstuhl, Stadt",315133]
["Vöhrenbach, Stadt",326068]
["Vöhringen",325061]
["Volkertshausen",335081]
["Vörstetten",316045]
["Waghäusel, Stadt",215106]
["Waiblingen, Stadt",119079]
["Waibstadt, Stadt",226091]
["Wain",426125]
["Wald",437118]
["Waldachtal",237074]
["Waldbronn",215110]
["Waldbrunn",225118]
["Waldburg",436079]
["Walddorfhäslach",415087]
["Waldenbuch, Stadt",115048]
["Waldenburg, Stadt",126085]
["Waldkirch, Stadt",316056]
["Waldshut-Tiengen, Stadt",337126]
["Waldstetten",136079]
["Walheim",118074]
["Walldorf, Stadt",226095]
["Walldürn, Stadt",225109]
["Wallhausen",127091]
["Walzbachtal",215089]
["Wangen",117055]
["Wangen im Allgäu, Stadt",436081]
["Wannweil",415080]
["Warthausen",426128]
["Wäschenbeuren",117053]
["Wehingen",327051]
["Wehr, Stadt",337116]
["Weidenstetten",425130]
["Weikersheim, Stadt",128126]
["Weil am Rhein, Stadt",336091]
["Weil der Stadt, Stadt",115050]
["Weil im Schönbuch",115051]
["Weilen unter den Rinnen",417071]
["Weilheim",337118]
["Weilheim an der Teck, Stadt",116070]
["Weingarten (Baden)",215090]
["Weingarten, Stadt",436082]
["Weinheim, Stadt",226096]
["Weinsberg, Stadt",125102]
["Weinstadt, Stadt",119091]
["Weisenbach",216059]
["Weissach",115052]
["Weissach im Tal",119083]
["Weißbach",126086]
["Weisweil",316049]
["Wellendingen",325064]
["Welzheim, Stadt",119084]
["Wembach",336094]
["Wendlingen am Neckar, Stadt",116071]
["Werbach",128128]
["Wernau (Neckar), Stadt",116072]
["Wertheim, Stadt",128131]
["Westerheim",425134]
["Westerstetten",425135]
["Westhausen",136082]
["Widdern, Stadt",125103]
["Wieden",336096]
["Wiernsheim",236065]
["Wiesenbach",226097]
["Wiesensteig, Stadt",117058]
["Wiesloch, Stadt",226098]
["Wildberg, Stadt",235080]
["Wilhelmsdorf",436083]
["Wilhelmsfeld",226099]
["Willstätt",317141]
["Wimsheim",236067]
["Winden im Elztal",316055]
["Winnenden, Stadt",119085]
["Winterbach",119086]
["Winterlingen",417075]
["Wittighausen",128137]
["Wittlingen",336100]
["Wittnau",315125]
["Wolfach, Stadt",317145]
["Wolfegg",436085]
["Wolfschlugen",116073]
["Wolpertshausen",127099]
["Wolpertswende",436087]
["Wörnersberg",237072]
["Wört",136084]
["Wurmberg",236068]
["Wurmlingen",327054]
["Wüstenrot",125107]
["Wutach",337127]
["Wutöschingen",337123]
["Wyhl am Kaiserstuhl",316051]
["Zaberfeld",125108]
["Zaisenhausen",215094]
["Zell am Harmersbach, Stadt",317146]
["Zell im Wiesental, Stadt",336103]
["Zell unter Aichelberg",117060]
["Zimmern ob Rottweil",325069]
["Zimmern unter der Burg",417078]
["Zuzenhausen",226101]
["Zweiflingen",126094]
["Zwiefalten",415085]
["Zwingenberg",225113]

{"sheet":"Export","index":7,"n_rows":334,"n_cols":6,"rows_kept":334,"hidden":true}
["Region",{"$f":"+Endenergiepotenzial!A3","v":0},null,null,{"$f":"+Endenergiepotenzial!B3","v":0},"Jahr Potenzialberechnung"]
["Regionalschlüssel",{"$f":"VLOOKUP(B1,Kommunen!A2:B1102,2,)","v":{"$error":"#N/A"}},null,null,{"$f":"+'Endenergiebedarf Ist'!A3","v":0},"Jahr Ist-Energiebilanz"]
["Merkmal","Kommunale Wärmeplanung"]
[]
["Attribut","Energieträger","Sektor","Einheit","Jahr","Wert"]
["Endenergiepotenzial","Biomasse insgesamt",null,"MWh/a",{"$f":"+Endenergiepotenzial!$B$3","v":0},{"$f":"+Endenergiepotenzial!B6","v":0}]
["Endenergiepotenzial","NaWaRo insgesamt",null,"MWh/a",{"$f":"+Endenergiepotenzial!$B$3","v":0},{"$f":"+Endenergiepotenzial!B7","v":0}]
["Endenergiepotenzial","feste Biomasse (Holz) insgesamt",null,"MWh/a",{"$f":"+Endenergiepotenzial!$B$3","v":0},{"$f":"+Endenergiepotenzial!B9","v":0}]
["Endenergiepotenzial",{"$f":"+Endenergiepotenzial!A10","v":"Brennholz (Waldrestholz)"},null,"MWh/a",{"$f":"+Endenergiepotenzial!$B$3","v":0},{"$f":"+Endenergiepotenzial!B10","v":0}]
["Endenergiepotenzial",{"$f":"+Endenergiepotenzial!A11","v":"Holzhackschnitzel (Waldrestholz)"},null,"MWh/a",{"$f":"+Endenergiepotenzial!$B$3","v":0},{"$f":"+Endenergiepotenzial!B11","v":0}]
["Endenergiepotenzial",{"$f":"+Endenergiepotenzial!A12","v":"Holzhackschnitzel (sonstige Flächen)"},null,"MWh/a",{"$f":"+Endenergiepotenzial!$B$3","v":0},{"$f":"+Endenergiepotenzial!B12","v":0}]
["Endenergiepotenzial",{"$f":"+Endenergiepotenzial!A13","v":"Sägereste"},null,"MWh/a",{"$f":"+Endenergiepotenzial!$B$3","v":0},{"$f":"+Endenergiepotenzial!B13","v":0}]
["Endenergiepotenzial",{"$f":"+Endenergiepotenzial!A14","v":"Sonstiges Holz außer Altholz"},null,"MWh/a",{"$f":"+Endenergiepotenzial!$B$3","v":0},{"$f":"+Endenergiepotenzial!B14","v":0}]
["Endenergiepotenzial","Andere NaWaRo insgesamt",null,"MWh/a",{"$f":"+Endenergiepotenzial!$B$3","v":0},{"$f":"+Endenergiepotenzial!B16","v":0}]
["Endenergiepotenzial",{"$f":"+Endenergiepotenzial!A17","v":"Gülle"},null,"MWh/a",{"$f":"+Endenergiepotenzial!$B$3","v":0},{"$f":"+Endenergiepotenzial!B17","v":0}]
["Endenergiepotenzial",{"$f":"+Endenergiepotenzial!A18","v":"Mais"},null,"MWh/a",{"$f":"+Endenergiepotenzial!$B$3","v":0},{"$f":"+Endenergiepotenzial!B18","v":0}]
["Endenergiepotenzial",{"$f":"+Endenergiepotenzial!A19","v":"Raps"},null,"MWh/a",{"$f":"+Endenergiepotenzial!$B$3","v":0},{"$f":"+Endenergiepotenzial!B19","v":0}]
["Endenergiepotenzial",{"$f":"+Endenergiepotenzial!A20","v":"Sonstige Feldfrüchte"},null,"MWh/a",{"$f":"+Endenergiepotenzial!$B$3","v":0},{"$f":"+Endenergiepotenzial!B20","v":0}]
["Endenergiepotenzial",{"$f":"+Endenergiepotenzial!A21","v":"Kurzumtriebsplantagen"},null,"MWh/a",{"$f":"+Endenergiepotenzial!$B$3","v":0},{"$f":"+Endenergiepotenzial!B21","v":0}]
["Endenergiepotenzial",{"$f":"+Endenergiepotenzial!A22","v":"Ernteabfälle feucht"},null,"MWh/a",{"$f":"+Endenergiepotenzial!$B$3","v":0},{"$f":"+Endenergiepotenzial!B22","v":0}]
["Endenergiepotenzial",{"$f":"+Endenergiepotenzial!A23","v":"Stroh"},null,"MWh/a",{"$f":"+Endenergiepotenzial!$B$3","v":0},{"$f":"+Endenergiepotenzial!B23","v":0}]
["Endenergiepotenzial",{"$f":"+Endenergiepotenzial!A24","v":"Sonstige NaWaRo"},null,"MWh/a",{"$f":"+Endenergiepotenzial!$B$3","v":0},{"$f":"+Endenergiepotenzial!B24","v":0}]
["Endenergiepotenzial","Abfälle insgesamt",null,"MWh/a",{"$f":"+Endenergiepotenzial!$B$3","v":0},{"$f":"+Endenergiepotenzial!B26","v":0}]
["Endenergiepotenzial",{"$f":"+Endenergiepotenzial!A27","v":"Biogener Anteile des Abfalls"},null,"MWh/a",{"$f":"+Endenergiepotenzial!$B$3","v":0},{"$f":"+Endenergiepotenzial!B27","v":0}]
["Endenergiepotenzial",{"$f":"+Endenergiepotenzial!A28","v":"Altholz"},null,"MWh/a",{"$f":"+Endenergiepotenzial!$B$3","v":0},{"$f":"+Endenergiepotenzial!B28","v":0}]
["Endenergiepotenzial",{"$f":"+Endenergiepotenzial!A29","v":"Sonstige Siedlungsabfälle etc."},null,"MWh/a",{"$f":"+Endenergiepotenzial!$B$3","v":0},{"$f":"+Endenergiepotenzial!B29","v":0}]
["Endenergiepotenzial",{"$f":"+Endenergiepotenzial!A31","v":"Klärgas"},null,"MWh/a",{"$f":"+Endenergiepotenzial!$B$3","v":0},{"$f":"+Endenergiepotenzial!B31","v":0}]
["Endenergiepotenzial",{"$f":"+Endenergiepotenzial!A33","v":"Deponiegas"},null,"MWh/a",{"$f":"+Endenergiepotenzial!$B$3","v":0},{"$f":"+Endenergiepotenzial!B33","v":0}]
["Endenergiepotenzial",{"$f":"+Endenergiepotenzial!A35","v":"Summe KWK-Wärmeerzeugung"},null,"MWh/a",{"$f":"+Endenergiepotenzial!$B$3","v":0},{"$f":"+Endenergiepotenzial!B35","v":0}]
["Endenergiepotenzial","Solarthermie Dachanlagen",null,"MWh/a",{"$f":"+Endenergiepotenzial!$B$3","v":0},{"$f":"+Endenergiepotenzial!B37","v":0}]
["Endenergiepotenzial","Solarthermie Freiflächenanlagen",null,"MWh/a",{"$f":"+Endenergiepotenzial!$B$3","v":0},{"$f":"+Endenergiepotenzial!B39","v":0}]
["Endenergiepotenzial","Oberflächennahe Geothermie (Erdwärme) insgesamt",null,"MWh/a",{"$f":"+Endenergiepotenzial!$B$3","v":0},{"$f":"+Endenergiepotenzial!B41","v":0}]
["Endenergiepotenzial",{"$f":"+Endenergiepotenzial!A42","v":"Stromverbrauch für Erdwärme-Wärmepumpen"},null,"MWh/a",{"$f":"+Endenergiepotenzial!$B$3","v":0},{"$f":"+Endenergiepotenzial!B42","v":0}]
["Endenergiepotenzial",{"$f":"+Endenergiepotenzial!A43","v":"Erdwärme Erdsonden"},null,"MWh/a",{"$f":"+Endenergiepotenzial!$B$3","v":0},{"$f":"+Endenergiepotenzial!B43","v":0}]
["Endenergiepotenzial",{"$f":"+Endenergiepotenzial!A44","v":"Erdwärme Erdkollektoren"},null,"MWh/a",{"$f":"+Endenergiepotenzial!$B$3","v":0},{"$f":"+Endenergiepotenzial!B44","v":0}]
["Endenergiepotenzial",{"$f":"+Endenergiepotenzial!A45","v":"Erdwärme Grundwasser"},null,"MWh/a",{"$f":"+Endenergiepotenzial!$B$3","v":0},{"$f":"+Endenergiepotenzial!B45","v":0}]
["Endenergiepotenzial","Umweltwärme insgesamt",null,"MWh/a",{"$f":"+Endenergiepotenzial!$B$3","v":0},{"$f":"+Endenergiepotenzial!B47","v":0}]
["Endenergiepotenzial",{"$f":"+Endenergiepotenzial!A48","v":"Stromverbrauch für Umweltwärme-Wärmepumpen"},null,"MWh/a",{"$f":"+Endenergiepotenzial!$B$3","v":0},{"$f":"+Endenergiepotenzial!B48","v":0}]
["Endenergiepotenzial",{"$f":"+Endenergiepotenzial!A49","v":"Umweltwärme Oberflächengewässer (See, Fluss)"},null,"MWh/a",{"$f":"+Endenergiepotenzial!$B$3","v":0},{"$f":"+Endenergiepotenzial!B49","v":0}]
["Endenergiepotenzial",{"$f":"+Endenergiepotenzial!A50","v":"Umweltwärme unterirdische Bauwerke"},null,"MWh/a",{"$f":"+Endenergiepotenzial!$B$3","v":0},{"$f":"+Endenergiepotenzial!B50","v":0}]
["Endenergiepotenzial",{"$f":"+Endenergiepotenzial!A52","v":"Wärme Tiefe Geothermie"},null,"MWh/a",{"$f":"+Endenergiepotenzial!$B$3","v":0},{"$f":"+Endenergiepotenzial!B52","v":0}]
["Endenergiepotenzial",{"$f":"+Endenergiepotenzial!A54","v":"Abwasser-Abwärme"},null,"MWh/a",{"$f":"+Endenergiepotenzial!$B$3","v":0},{"$f":"+Endenergiepotenzial!B54","v":0}]
["Endenergiepotenzial",{"$f":"+Endenergiepotenzial!A55","v":"Stromverbrauch für Abwasser-Wärmepumpen"},null,"MWh/a",{"$f":"+Endenergiepotenzial!$B$3","v":0},{"$f":"+Endenergiepotenzial!B55","v":0}]
["Endenergiepotenzial",{"$f":"+Endenergiepotenzial!A57","v":"Abwärme aus Industrie und GHD"},null,"MWh/a",{"$f":"+Endenergiepotenzial!$B$3","v":0},{"$f":"+Endenergiepotenzial!B57","v":0}]
["Endenergiepotenzial",{"$f":"+Endenergiepotenzial!A58","v":"Stromverbrauch für Abwärme-Wärmepumpen"},null,"MWh/a",{"$f":"+Endenergiepotenzial!$B$3","v":0},{"$f":"+Endenergiepotenzial!B58","v":0}]
["Endenergiepotenzial",{"$f":"+Endenergiepotenzial!A59","v":"Abwärme 45 bis 75°"},null,"MWh/a",{"$f":"+Endenergiepotenzial!$B$3","v":0},{"$f":"+Endenergiepotenzial!B59","v":0}]
["Endenergiepotenzial",{"$f":"+Endenergiepotenzial!A60","v":"Abwärme 75 bis 125°"},null,"MWh/a",{"$f":"+Endenergiepotenzial!$B$3","v":0},{"$f":"+Endenergiepotenzial!B60","v":0}]
["Endenergiepotenzial",{"$f":"+Endenergiepotenzial!A61","v":"Abwärme 125° bis 500°"},null,"MWh/a",{"$f":"+Endenergiepotenzial!$B$3","v":0},{"$f":"+Endenergiepotenzial!B61","v":0}]
["Endenergiepotenzial",{"$f":"+Endenergiepotenzial!A62","v":"Abwärme > 500°"},null,"MWh/a",{"$f":"+Endenergiepotenzial!$B$3","v":0},{"$f":"+Endenergiepotenzial!B62","v":0}]
["Endenergiepotenzial",{"$f":"+Endenergiepotenzial!A64","v":"Windenergie"},null,"MWh/a",{"$f":"+Endenergiepotenzial!$B$3","v":0},{"$f":"+Endenergiepotenzial!B64","v":0}]
["Endenergiepotenzial",{"$f":"+Endenergiepotenzial!A66","v":"Wasserkraft"},null,"MWh/a",{"$f":"+Endenergiepotenzial!$B$3","v":0},{"$f":"+Endenergiepotenzial!B66","v":0}]
["Endenergiepotenzial","PV Dachanlagen",null,"MWh/a",{"$f":"+Endenergiepotenzial!$B$3","v":0},{"$f":"+Endenergiepotenzial!B68","v":0}]
["Endenergiepotenzial","PV Freiflächenanlagen",null,"MWh/a",{"$f":"+Endenergiepotenzial!$B$3","v":0},{"$f":"+Endenergiepotenzial!B70","v":0}]
["Endenergiepotenzial",{"$f":"+Endenergiepotenzial!A72","v":"Strom Tiefe Geothermie"},null,"MWh/a",{"$f":"+Endenergiepotenzial!$B$3","v":0},{"$f":"+Endenergiepotenzial!B72","v":0}]
["Endenergiepotenzial",{"$f":"+Endenergiepotenzial!A74","v":"Summe KWK-Stromerzeugung"},null,"MWh/a",{"$f":"+Endenergiepotenzial!$B$3","v":0},{"$f":"+Endenergiepotenzial!B74","v":0}]
["Endenergiebedarf","Strom (abzgl. WP-Strom und Direktheizung)","Haushalte","MWh/a",{"$f":"+'Endenergiebedarf Ist'!$A$3","v":0},{"$f":"+'Endenergiebedarf Ist'!B4","v":0}]
["Endenergiebedarf","Wärmenetze","Haushalte","MWh/a",{"$f":"+'Endenergiebedarf Ist'!$A$3","v":0},{"$f":"+'Endenergiebedarf Ist'!C4","v":0}]
["Endenergiebedarf","Heizöl, fossil","Haushalte","MWh/a",{"$f":"+'Endenergiebedarf Ist'!$A$3","v":0},{"$f":"+'Endenergiebedarf Ist'!D4","v":0}]
["Endenergiebedarf","Erdgas, fossil","Haushalte","MWh/a",{"$f":"+'Endenergiebedarf Ist'!$A$3","v":0},{"$f":"+'Endenergiebedarf Ist'!E4","v":0}]
["Endenergiebedarf","Wasserstoff, inkl. Beimischung zu Erdgas","Haushalte","MWh/a",{"$f":"+'Endenergiebedarf Ist'!$A$3","v":0},{"$f":"+'Endenergiebedarf Ist'!F4","v":0}]
["Endenergiebedarf","Synt. Brennstoffe (PtX)","Haushalte","MWh/a",{"$f":"+'Endenergiebedarf Ist'!$A$3","v":0},{"$f":"+'Endenergiebedarf Ist'!G4","v":0}]
["Endenergiebedarf","Solarwärme","Haushalte","MWh/a",{"$f":"+'Endenergiebedarf Ist'!$A$3","v":0},{"$f":"+'Endenergiebedarf Ist'!H4","v":0}]
["Endenergiebedarf","Biomasse","Haushalte","MWh/a",{"$f":"+'Endenergiebedarf Ist'!$A$3","v":0},{"$f":"+'Endenergiebedarf Ist'!I4","v":0}]
["Endenergiebedarf","Luft-Wärmepumpe (Umweltwärme + WP-Strom)","Haushalte","MWh/a",{"$f":"+'Endenergiebedarf Ist'!$A$3","v":0},{"$f":"+'Endenergiebedarf Ist'!J4","v":0}]
["Endenergiebedarf","Erdwärme-Wärmepumpe (Umweltwärme + WP-Strom)","Haushalte","MWh/a",{"$f":"+'Endenergiebedarf Ist'!$A$3","v":0},{"$f":"+'Endenergiebedarf Ist'!K4","v":0}]
["Endenergiebedarf","Gewässer-Wärmepumpe (Umweltwärme + WP-Strom)","Haushalte","MWh/a",{"$f":"+'Endenergiebedarf Ist'!$A$3","v":0},{"$f":"+'Endenergiebedarf Ist'!L4","v":0}]
["Endenergiebedarf","Direktstrom","Haushalte","MWh/a",{"$f":"+'Endenergiebedarf Ist'!$A$3","v":0},{"$f":"+'Endenergiebedarf Ist'!M4","v":0}]
["Endenergiebedarf","Feste fossile Brennstoffe","Haushalte","MWh/a",{"$f":"+'Endenergiebedarf Ist'!$A$3","v":0},{"$f":"+'Endenergiebedarf Ist'!N4","v":0}]
["Endenergiebedarf","Endenergiebedarf Wärme insgesamt","Haushalte","MWh/a",{"$f":"+'Endenergiebedarf Ist'!$A$3","v":0},{"$f":"+'Endenergiebedarf Ist'!O4","v":0}]
["Endenergiebedarf","Strom (abzgl. WP-Strom und Direktheizung)","Gewerbe Handel Dienstleistungen","MWh/a",{"$f":"+'Endenergiebedarf Ist'!$A$3","v":0},{"$f":"+'Endenergiebedarf Ist'!B5","v":0}]
["Endenergiebedarf","Wärmenetze","Gewerbe Handel Dienstleistungen","MWh/a",{"$f":"+'Endenergiebedarf Ist'!$A$3","v":0},{"$f":"+'Endenergiebedarf Ist'!C5","v":0}]
["Endenergiebedarf","Heizöl, fossil","Gewerbe Handel Dienstleistungen","MWh/a",{"$f":"+'Endenergiebedarf Ist'!$A$3","v":0},{"$f":"+'Endenergiebedarf Ist'!D5","v":0}]
["Endenergiebedarf","Erdgas, fossil","Gewerbe Handel Dienstleistungen","MWh/a",{"$f":"+'Endenergiebedarf Ist'!$A$3","v":0},{"$f":"+'Endenergiebedarf Ist'!E5","v":0}]
["Endenergiebedarf","Wasserstoff, inkl. Beimischung zu Erdgas","Gewerbe Handel Dienstleistungen","MWh/a",{"$f":"+'Endenergiebedarf Ist'!$A$3","v":0},{"$f":"+'Endenergiebedarf Ist'!F5","v":0}]
["Endenergiebedarf","Synt. Brennstoffe (PtX)","Gewerbe Handel Dienstleistungen","MWh/a",{"$f":"+'Endenergiebedarf Ist'!$A$3","v":0},{"$f":"+'Endenergiebedarf Ist'!G5","v":0}]
["Endenergiebedarf","Solarwärme","Gewerbe Handel Dienstleistungen","MWh/a",{"$f":"+'Endenergiebedarf Ist'!$A$3","v":0},{"$f":"+'Endenergiebedarf Ist'!H5","v":0}]
["Endenergiebedarf","Biomasse","Gewerbe Handel Dienstleistungen","MWh/a",{"$f":"+'Endenergiebedarf Ist'!$A$3","v":0},{"$f":"+'Endenergiebedarf Ist'!I5","v":0}]
["Endenergiebedarf","Luft-Wärmepumpe (Umweltwärme + WP-Strom)","Gewerbe Handel Dienstleistungen","MWh/a",{"$f":"+'Endenergiebedarf Ist'!$A$3","v":0},{"$f":"+'Endenergiebedarf Ist'!J5","v":0}]
["Endenergiebedarf","Erdwärme-Wärmepumpe (Umweltwärme + WP-Strom)","Gewerbe Handel Dienstleistungen","MWh/a",{"$f":"+'Endenergiebedarf Ist'!$A$3","v":0},{"$f":"+'Endenergiebedarf Ist'!K5","v":0}]
["Endenergiebedarf","Gewässer-Wärmepumpe (Umweltwärme + WP-Strom)","Gewerbe Handel Dienstleistungen","MWh/a",{"$f":"+'Endenergiebedarf Ist'!$A$3","v":0},{"$f":"+'Endenergiebedarf Ist'!L5","v":0}]
["Endenergiebedarf","Direktstrom","Gewerbe Handel Dienstleistungen","MWh/a",{"$f":"+'Endenergiebedarf Ist'!$A$3","v":0},{"$f":"+'Endenergiebedarf Ist'!M5","v":0}]
["Endenergiebedarf","Feste fossile Brennstoffe","Gewerbe Handel Dienstleistungen","MWh/a",{"$f":"+'Endenergiebedarf Ist'!$A$3","v":0},{"$f":"+'Endenergiebedarf Ist'!N5","v":0}]
["Endenergiebedarf","Endenergiebedarf Wärme insgesamt","Gewerbe Handel Dienstleistungen","MWh/a",{"$f":"+'Endenergiebedarf Ist'!$A$3","v":0},{"$f":"+'Endenergiebedarf Ist'!O5","v":0}]
["Endenergiebedarf","Strom (abzgl. WP-Strom und Direktheizung)","Verarbeitendes Gewerbe C","MWh/a",{"$f":"+'Endenergiebedarf Ist'!$A$3","v":0},{"$f":"+'Endenergiebedarf Ist'!B6","v":0}]
["Endenergiebedarf","Wärmenetze","Verarbeitendes Gewerbe C","MWh/a",{"$f":"+'Endenergiebedarf Ist'!$A$3","v":0},{"$f":"+'Endenergiebedarf Ist'!C6","v":0}]
["Endenergiebedarf","Heizöl, fossil","Verarbeitendes Gewerbe C","MWh/a",{"$f":"+'Endenergiebedarf Ist'!$A$3","v":0},{"$f":"+'Endenergiebedarf Ist'!D6","v":0}]
["Endenergiebedarf","Erdgas, fossil","Verarbeitendes Gewerbe C","MWh/a",{"$f":"+'Endenergiebedarf Ist'!$A$3","v":0},{"$f":"+'Endenergiebedarf Ist'!E6","v":0}]
["Endenergiebedarf","Wasserstoff, inkl. Beimischung zu Erdgas","Verarbeitendes Gewerbe C","MWh/a",{"$f":"+'Endenergiebedarf Ist'!$A$3","v":0},{"$f":"+'Endenergiebedarf Ist'!F6","v":0}]
["Endenergiebedarf","Synt. Brennstoffe (PtX)","Verarbeitendes Gewerbe C","MWh/a",{"$f":"+'Endenergiebedarf Ist'!$A$3","v":0},{"$f":"+'Endenergiebedarf Ist'!G6","v":0}]
["Endenergiebedarf","Solarwärme","Verarbeitendes Gewerbe C","MWh/a",{"$f":"+'Endenergiebedarf Ist'!$A$3","v":0},{"$f":"+'Endenergiebedarf Ist'!H6","v":0}]
["Endenergiebedarf","Biomasse","Verarbeitendes Gewerbe C","MWh/a",{"$f":"+'Endenergiebedarf Ist'!$A$3","v":0},{"$f":"+'Endenergiebedarf Ist'!I6","v":0}]
["Endenergiebedarf","Luft-Wärmepumpe (Umweltwärme + WP-Strom)","Verarbeitendes Gewerbe C","MWh/a",{"$f":"+'Endenergiebedarf Ist'!$A$3","v":0},{"$f":"+'Endenergiebedarf Ist'!J6","v":0}]
["Endenergiebedarf","Erdwärme-Wärmepumpe (Umweltwärme + WP-Strom)","Verarbeitendes Gewerbe C","MWh/a",{"$f":"+'Endenergiebedarf Ist'!$A$3","v":0},{"$f":"+'Endenergiebedarf Ist'!K6","v":0}]
["Endenergiebedarf","Gewässer-Wärmepumpe (Umweltwärme + WP-Strom)","Verarbeitendes Gewerbe C","MWh/a",{"$f":"+'Endenergiebedarf Ist'!$A$3","v":0},{"$f":"+'Endenergiebedarf Ist'!L6","v":0}]
["Endenergiebedarf","Direktstrom","Verarbeitendes Gewerbe C","MWh/a",{"$f":"+'Endenergiebedarf Ist'!$A$3","v":0},{"$f":"+'Endenergiebedarf Ist'!M6","v":0}]
["Endenergiebedarf","Feste fossile Brennstoffe","Verarbeitendes Gewerbe C","MWh/a",{"$f":"+'Endenergiebedarf Ist'!$A$3","v":0},{"$f":"+'Endenergiebedarf Ist'!N6","v":0}]
["Endenergiebedarf","Endenergiebedarf Wärme insgesamt","Verarbeitendes Gewerbe C","MWh/a",{"$f":"+'Endenergiebedarf Ist'!$A$3","v":0},{"$f":"+'Endenergiebedarf Ist'!O6","v":0}]
["Endenergiebedarf","Strom (abzgl. WP-Strom und Direktheizung)","Kommunale Liegenschaften","MWh/a",{"$f":"+'Endenergiebedarf Ist'!$A$3","v":0},{"$f":"+'Endenergiebedarf Ist'!B7","v":0}]
["Endenergiebedarf","Wärmenetze","Kommunale Liegenschaften","MWh/a",{"$f":"+'Endenergiebedarf Ist'!$A$3","v":0},{"$f":"+'Endenergiebedarf Ist'!C7","v":0}]
["Endenergiebedarf","Heizöl, fossil","Kommunale Liegenschaften","MWh/a",{"$f":"+'Endenergiebedarf Ist'!$A$3","v":0},{"$f":"+'Endenergiebedarf Ist'!D7","v":0}]
["Endenergiebedarf","Erdgas, fossil","Kommunale Liegenschaften","MWh/a",{"$f":"+'Endenergiebedarf Ist'!$A$3","v":0},{"$f":"+'Endenergiebedarf Ist'!E7","v":0}]
["Endenergiebedarf","Wasserstoff, inkl. Beimischung zu Erdgas","Kommunale Liegenschaften","MWh/a",{"$f":"+'Endenergiebedarf Ist'!$A$3","v":0},{"$f":"+'Endenergiebedarf Ist'!F7","v":0}]
["Endenergiebedarf","Synt. Brennstoffe (PtX)","Kommunale Liegenschaften","MWh/a",{"$f":"+'Endenergiebedarf Ist'!$A$3","v":0},{"$f":"+'Endenergiebedarf Ist'!G7","v":0}]
["Endenergiebedarf","Solarwärme","Kommunale Liegenschaften","MWh/a",{"$f":"+'Endenergiebedarf Ist'!$A$3","v":0},{"$f":"+'Endenergiebedarf Ist'!H7","v":0}]
["Endenergiebedarf","Biomasse","Kommunale Liegenschaften","MWh/a",{"$f":"+'Endenergiebedarf Ist'!$A$3","v":0},{"$f":"+'Endenergiebedarf Ist'!I7","v":0}]
["Endenergiebedarf","Luft-Wärmepumpe (Umweltwärme + WP-Strom)","Kommunale Liegenschaften","MWh/a",{"$f":"+'Endenergiebedarf Ist'!$A$3","v":0},{"$f":"+'Endenergiebedarf Ist'!J7","v":0}]
["Endenergiebedarf","Erdwärme-Wärmepumpe (Umweltwärme + WP-Strom)","Kommunale Liegenschaften","MWh/a",{"$f":"+'Endenergiebedarf Ist'!$A$3","v":0},{"$f":"+'Endenergiebedarf Ist'!K7","v":0}]
["Endenergiebedarf","Gewässer-Wärmepumpe (Umweltwärme + WP-Strom)","Kommunale Liegenschaften","MWh/a",{"$f":"+'Endenergiebedarf Ist'!$A$3","v":0},{"$f":"+'Endenergiebedarf Ist'!L7","v":0}]
["Endenergiebedarf","Direktstrom","Kommunale Liegenschaften","MWh/a",{"$f":"+'Endenergiebedarf Ist'!$A$3","v":0},{"$f":"+'Endenergiebedarf Ist'!M7","v":0}]
["Endenergiebedarf","Feste fossile Brennstoffe","Kommunale Liegenschaften","MWh/a",{"$f":"+'Endenergiebedarf Ist'!$A$3","v":0},{"$f":"+'Endenergiebedarf Ist'!N7","v":0}]
["Endenergiebedarf","Endenergiebedarf Wärme insgesamt","Kommunale Liegenschaften","MWh/a",{"$f":"+'Endenergiebedarf Ist'!$A$3","v":0},{"$f":"+'Endenergiebedarf Ist'!O7","v":0}]
["Endenergiebedarf","Strom (abzgl. WP-Strom und Direktheizung)","Sektoren insgesamt","MWh/a",{"$f":"+'Endenergiebedarf Ist'!$A$3","v":0},{"$f":"+'Endenergiebedarf Ist'!B8","v":0}]
["Endenergiebedarf","Wärmenetze","Sektoren insgesamt","MWh/a",{"$f":"+'Endenergiebedarf Ist'!$A$3","v":0},{"$f":"+'Endenergiebedarf Ist'!C8","v":0}]
["Endenergiebedarf","Heizöl, fossil","Sektoren insgesamt","MWh/a",{"$f":"+'Endenergiebedarf Ist'!$A$3","v":0},{"$f":"+'Endenergiebedarf Ist'!D8","v":0}]
["Endenergiebedarf","Erdgas, fossil","Sektoren insgesamt","MWh/a",{"$f":"+'Endenergiebedarf Ist'!$A$3","v":0},{"$f":"+'Endenergiebedarf Ist'!E8","v":0}]
["Endenergiebedarf","Wasserstoff, inkl. Beimischung zu Erdgas","Sektoren insgesamt","MWh/a",{"$f":"+'Endenergiebedarf Ist'!$A$3","v":0},{"$f":"+'Endenergiebedarf Ist'!F8","v":0}]
["Endenergiebedarf","Synt. Brennstoffe (PtX)","Sektoren insgesamt","MWh/a",{"$f":"+'Endenergiebedarf Ist'!$A$3","v":0},{"$f":"+'Endenergiebedarf Ist'!G8","v":0}]
["Endenergiebedarf","Solarwärme","Sektoren insgesamt","MWh/a",{"$f":"+'Endenergiebedarf Ist'!$A$3","v":0},{"$f":"+'Endenergiebedarf Ist'!H8","v":0}]
["Endenergiebedarf","Biomasse","Sektoren insgesamt","MWh/a",{"$f":"+'Endenergiebedarf Ist'!$A$3","v":0},{"$f":"+'Endenergiebedarf Ist'!I8","v":0}]
["Endenergiebedarf","Luft-Wärmepumpe (Umweltwärme + WP-Strom)","Sektoren insgesamt","MWh/a",{"$f":"+'Endenergiebedarf Ist'!$A$3","v":0},{"$f":"+'Endenergiebedarf Ist'!J8","v":0}]
["Endenergiebedarf","Erdwärme-Wärmepumpe (Umweltwärme + WP-Strom)","Sektoren insgesamt","MWh/a",{"$f":"+'Endenergiebedarf Ist'!$A$3","v":0},{"$f":"+'Endenergiebedarf Ist'!K8","v":0}]
["Endenergiebedarf","Gewässer-Wärmepumpe (Umweltwärme + WP-Strom)","Sektoren insgesamt","MWh/a",{"$f":"+'Endenergiebedarf Ist'!$A$3","v":0},{"$f":"+'Endenergiebedarf Ist'!L8","v":0}]
["Endenergiebedarf","Direktstrom","Sektoren insgesamt","MWh/a",{"$f":"+'Endenergiebedarf Ist'!$A$3","v":0},{"$f":"+'Endenergiebedarf Ist'!M8","v":0}]
["Endenergiebedarf","Feste fossile Brennstoffe","Sektoren insgesamt","MWh/a",{"$f":"+'Endenergiebedarf Ist'!$A$3","v":0},{"$f":"+'Endenergiebedarf Ist'!N8","v":0}]
["Endenergiebedarf","Endenergiebedarf Wärme insgesamt","Sektoren insgesamt","MWh/a",{"$f":"+'Endenergiebedarf Ist'!$A$3","v":0},{"$f":"+'Endenergiebedarf Ist'!O8","v":0}]
["Endenergieeeinsatz zur Wärmeerzeugung","Heizöl, fossil","Wärmenetze","MWh/a",{"$f":"+'Endenergiebedarf Ist'!$A$3","v":0},{"$f":"+'Endenergiebedarf Ist'!B14","v":0}]
["Endenergieeeinsatz zur Wärmeerzeugung","Erdgas, fossil","Wärmenetze","MWh/a",{"$f":"+'Endenergiebedarf Ist'!$A$3","v":0},{"$f":"+'Endenergiebedarf Ist'!C14","v":0}]
["Endenergieeeinsatz zur Wärmeerzeugung","Steinkohle, Braunkohle","Wärmenetze","MWh/a",{"$f":"+'Endenergiebedarf Ist'!$A$3","v":0},{"$f":"+'Endenergiebedarf Ist'!D14","v":0}]
["Endenergieeeinsatz zur Wärmeerzeugung","Wasserstoff","Wärmenetze","MWh/a",{"$f":"+'Endenergiebedarf Ist'!$A$3","v":0},{"$f":"+'Endenergiebedarf Ist'!E14","v":0}]
["Endenergieeeinsatz zur Wärmeerzeugung","Synt. Brennstoffe","Wärmenetze","MWh/a",{"$f":"+'Endenergiebedarf Ist'!$A$3","v":0},{"$f":"+'Endenergiebedarf Ist'!F14","v":0}]
["Endenergieeeinsatz zur Wärmeerzeugung","Biogas","Wärmenetze","MWh/a",{"$f":"+'Endenergiebedarf Ist'!$A$3","v":0},{"$f":"+'Endenergiebedarf Ist'!G14","v":0}]
["Endenergieeeinsatz zur Wärmeerzeugung","Klärgas und Deponiegas","Wärmenetze","MWh/a",{"$f":"+'Endenergiebedarf Ist'!$A$3","v":0},{"$f":"+'Endenergiebedarf Ist'!H14","v":0}]
["Endenergieeeinsatz zur Wärmeerzeugung","Solarwärme","Wärmenetze","MWh/a",{"$f":"+'Endenergiebedarf Ist'!$A$3","v":0},{"$f":"+'Endenergiebedarf Ist'!I14","v":0}]
["Endenergieeeinsatz zur Wärmeerzeugung","Biomasse","Wärmenetze","MWh/a",{"$f":"+'Endenergiebedarf Ist'!$A$3","v":0},{"$f":"+'Endenergiebedarf Ist'!J14","v":0}]
["Endenergieeeinsatz zur Wärmeerzeugung","Luft-Wärmepumpe (Umweltwärme + WP-Strom)","Wärmenetze","MWh/a",{"$f":"+'Endenergiebedarf Ist'!$A$3","v":0},{"$f":"+'Endenergiebedarf Ist'!K14","v":0}]
["Endenergieeeinsatz zur Wärmeerzeugung","Erdwärme-Wärmepumpe (Umweltwärme + WP-Strom)","Wärmenetze","MWh/a",{"$f":"+'Endenergiebedarf Ist'!$A$3","v":0},{"$f":"+'Endenergiebedarf Ist'!L14","v":0}]
["Endenergieeeinsatz zur Wärmeerzeugung","Gewässer-Wärmepumpe (Umweltwärme + WP-Strom)","Wärmenetze","MWh/a",{"$f":"+'Endenergiebedarf Ist'!$A$3","v":0},{"$f":"+'Endenergiebedarf Ist'!M14","v":0}]
["Endenergieeeinsatz zur Wärmeerzeugung","Industrielle Abwärme (Niedertemp. + WP-Strom)","Wärmenetze","MWh/a",{"$f":"+'Endenergiebedarf Ist'!$A$3","v":0},{"$f":"+'Endenergiebedarf Ist'!N14","v":0}]
["Endenergieeeinsatz zur Wärmeerzeugung","Industrielle Abwärme (Hochtemp. direkte Nutzung)","Wärmenetze","MWh/a",{"$f":"+'Endenergiebedarf Ist'!$A$3","v":0},{"$f":"+'Endenergiebedarf Ist'!O14","v":0}]
["Endenergieeeinsatz zur Wärmeerzeugung","Abwasser-Wärmepumpe (Umweltwärme + WP-Strom)","Wärmenetze","MWh/a",{"$f":"+'Endenergiebedarf Ist'!$A$3","v":0},{"$f":"+'Endenergiebedarf Ist'!P14","v":0}]
["Endenergieeeinsatz zur Wärmeerzeugung","Wärme Tiefe Geothermie","Wärmenetze","MWh/a",{"$f":"+'Endenergiebedarf Ist'!$A$3","v":0},{"$f":"+'Endenergiebedarf Ist'!Q14","v":0}]
["Endenergieeeinsatz zur Wärmeerzeugung","Abfall","Wärmenetze","MWh/a",{"$f":"+'Endenergiebedarf Ist'!$A$3","v":0},{"$f":"+'Endenergiebedarf Ist'!R14","v":0}]
["Endenergieeeinsatz zur Wärmeerzeugung","EE-Direktstrom","Wärmenetze","MWh/a",{"$f":"+'Endenergiebedarf Ist'!$A$3","v":0},{"$f":"+'Endenergiebedarf Ist'!S14","v":0}]
["Endenergieeeinsatz zur Wärmeerzeugung","Sonstige fossile Brennstoffe","Wärmenetze","MWh/a",{"$f":"+'Endenergiebedarf Ist'!$A$3","v":0},{"$f":"+'Endenergiebedarf Ist'!T14","v":0}]
["Endenergieeeinsatz zur Wärmeerzeugung","Sonstige erneuerbare Brennstoffe","Wärmenetze","MWh/a",{"$f":"+'Endenergiebedarf Ist'!$A$3","v":0},{"$f":"+'Endenergiebedarf Ist'!U14","v":0}]
["Endenergieeeinsatz zur Wärmeerzeugung","Summe Wärmenetzerzezugung","Wärmenetze","MWh/a",{"$f":"+'Endenergiebedarf Ist'!$A$3","v":0},{"$f":"+'Endenergiebedarf Ist'!V14","v":0}]
["KWK-Wärmeerzeugung","Energieträger insgesamt","Wärmenetze","MWh/a",{"$f":"+'Endenergiebedarf Ist'!$A$3","v":0},{"$f":"+'Endenergiebedarf Ist'!W14","v":0}]
["KWK-Stromerzeugung","Energieträger insgesamt","Wärmenetze","MWh/a",{"$f":"+'Endenergiebedarf Ist'!$A$3","v":0},{"$f":"+'Endenergiebedarf Ist'!X14","v":0}]
["Endenergiebedarf","Strom (abzgl. WP-Strom und Direktheizung)","Haushalte","MWh/a",{"$f":"+'Endenergiebedarf 2030'!$A$3","v":2030},{"$f":"+'Endenergiebedarf 2030'!B4","v":0}]
["Endenergiebedarf","Wärmenetze","Haushalte","MWh/a",{"$f":"+'Endenergiebedarf 2030'!$A$3","v":2030},{"$f":"+'Endenergiebedarf 2030'!C4","v":0}]
["Endenergiebedarf","Heizöl, fossil","Haushalte","MWh/a",{"$f":"+'Endenergiebedarf 2030'!$A$3","v":2030},{"$f":"+'Endenergiebedarf 2030'!D4","v":0}]
["Endenergiebedarf","Erdgas, fossil","Haushalte","MWh/a",{"$f":"+'Endenergiebedarf 2030'!$A$3","v":2030},{"$f":"+'Endenergiebedarf 2030'!E4","v":0}]
["Endenergiebedarf","Wasserstoff, inkl. Beimischung zu Erdgas","Haushalte","MWh/a",{"$f":"+'Endenergiebedarf 2030'!$A$3","v":2030},{"$f":"+'Endenergiebedarf 2030'!F4","v":0}]
["Endenergiebedarf","Synt. Brennstoffe (PtX)","Haushalte","MWh/a",{"$f":"+'Endenergiebedarf 2030'!$A$3","v":2030},{"$f":"+'Endenergiebedarf 2030'!G4","v":0}]
["Endenergiebedarf","Solarwärme","Haushalte","MWh/a",{"$f":"+'Endenergiebedarf 2030'!$A$3","v":2030},{"$f":"+'Endenergiebedarf 2030'!H4","v":0}]
["Endenergiebedarf","Biomasse","Haushalte","MWh/a",{"$f":"+'Endenergiebedarf 2030'!$A$3","v":2030},{"$f":"+'Endenergiebedarf 2030'!I4","v":0}]
["Endenergiebedarf","Luft-Wärmepumpe (Umweltwärme + WP-Strom)","Haushalte","MWh/a",{"$f":"+'Endenergiebedarf 2030'!$A$3","v":2030},{"$f":"+'Endenergiebedarf 2030'!J4","v":0}]
["Endenergiebedarf","Erdwärme-Wärmepumpe (Umweltwärme + WP-Strom)","Haushalte","MWh/a",{"$f":"+'Endenergiebedarf 2030'!$A$3","v":2030},{"$f":"+'Endenergiebedarf 2030'!K4","v":0}]
["Endenergiebedarf","Gewässer-Wärmepumpe (Umweltwärme + WP-Strom)","Haushalte","MWh/a",{"$f":"+'Endenergiebedarf 2030'!$A$3","v":2030},{"$f":"+'Endenergiebedarf 2030'!L4","v":0}]
["Endenergiebedarf","Direktstrom","Haushalte","MWh/a",{"$f":"+'Endenergiebedarf 2030'!$A$3","v":2030},{"$f":"+'Endenergiebedarf 2030'!M4","v":0}]
["Endenergiebedarf","Feste fossile Brennstoffe","Haushalte","MWh/a",{"$f":"+'Endenergiebedarf 2030'!$A$3","v":2030},{"$f":"+'Endenergiebedarf 2030'!N4","v":0}]
["Endenergiebedarf","Endenergiebedarf Wärme insgesamt","Haushalte","MWh/a",{"$f":"+'Endenergiebedarf 2030'!$A$3","v":2030},{"$f":"+'Endenergiebedarf 2030'!O4","v":0}]
["Endenergiebedarf","Strom (abzgl. WP-Strom und Direktheizung)","Gewerbe Handel Dienstleistungen","MWh/a",{"$f":"+'Endenergiebedarf 2030'!$A$3","v":2030},{"$f":"+'Endenergiebedarf 2030'!B5","v":0}]
["Endenergiebedarf","Wärmenetze","Gewerbe Handel Dienstleistungen","MWh/a",{"$f":"+'Endenergiebedarf 2030'!$A$3","v":2030},{"$f":"+'Endenergiebedarf 2030'!C5","v":0}]
["Endenergiebedarf","Heizöl, fossil","Gewerbe Handel Dienstleistungen","MWh/a",{"$f":"+'Endenergiebedarf 2030'!$A$3","v":2030},{"$f":"+'Endenergiebedarf 2030'!D5","v":0}]
["Endenergiebedarf","Erdgas, fossil","Gewerbe Handel Dienstleistungen","MWh/a",{"$f":"+'Endenergiebedarf 2030'!$A$3","v":2030},{"$f":"+'Endenergiebedarf 2030'!E5","v":0}]
["Endenergiebedarf","Wasserstoff, inkl. Beimischung zu Erdgas","Gewerbe Handel Dienstleistungen","MWh/a",{"$f":"+'Endenergiebedarf 2030'!$A$3","v":2030},{"$f":"+'Endenergiebedarf 2030'!F5","v":0}]
["Endenergiebedarf","Synt. Brennstoffe (PtX)","Gewerbe Handel Dienstleistungen","MWh/a",{"$f":"+'Endenergiebedarf 2030'!$A$3","v":2030},{"$f":"+'Endenergiebedarf 2030'!G5","v":0}]
["Endenergiebedarf","Solarwärme","Gewerbe Handel Dienstleistungen","MWh/a",{"$f":"+'Endenergiebedarf 2030'!$A$3","v":2030},{"$f":"+'Endenergiebedarf 2030'!H5","v":0}]
["Endenergiebedarf","Biomasse","Gewerbe Handel Dienstleistungen","MWh/a",{"$f":"+'Endenergiebedarf 2030'!$A$3","v":2030},{"$f":"+'Endenergiebedarf 2030'!I5","v":0}]
["Endenergiebedarf","Luft-Wärmepumpe (Umweltwärme + WP-Strom)","Gewerbe Handel Dienstleistungen","MWh/a",{"$f":"+'Endenergiebedarf 2030'!$A$3","v":2030},{"$f":"+'Endenergiebedarf 2030'!J5","v":0}]
["Endenergiebedarf","Erdwärme-Wärmepumpe (Umweltwärme + WP-Strom)","Gewerbe Handel Dienstleistungen","MWh/a",{"$f":"+'Endenergiebedarf 2030'!$A$3","v":2030},{"$f":"+'Endenergiebedarf 2030'!K5","v":0}]
["Endenergiebedarf","Gewässer-Wärmepumpe (Umweltwärme + WP-Strom)","Gewerbe Handel Dienstleistungen","MWh/a",{"$f":"+'Endenergiebedarf 2030'!$A$3","v":2030},{"$f":"+'Endenergiebedarf 2030'!L5","v":0}]
["Endenergiebedarf","Direktstrom","Gewerbe Handel Dienstleistungen","MWh/a",{"$f":"+'Endenergiebedarf 2030'!$A$3","v":2030},{"$f":"+'Endenergiebedarf 2030'!M5","v":0}]
["Endenergiebedarf","Feste fossile Brennstoffe","Gewerbe Handel Dienstleistungen","MWh/a",{"$f":"+'Endenergiebedarf 2030'!$A$3","v":2030},{"$f":"+'Endenergiebedarf 2030'!N5","v":0}]
["Endenergiebedarf","Endenergiebedarf Wärme insgesamt","Gewerbe Handel Dienstleistungen","MWh/a",{"$f":"+'Endenergiebedarf 2030'!$A$3","v":2030},{"$f":"+'Endenergiebedarf 2030'!O5","v":0}]
["Endenergiebedarf","Strom (abzgl. WP-Strom und Direktheizung)","Verarbeitendes Gewerbe C","MWh/a",{"$f":"+'Endenergiebedarf 2030'!$A$3","v":2030},{"$f":"+'Endenergiebedarf 2030'!B6","v":0}]
["Endenergiebedarf","Wärmenetze","Verarbeitendes Gewerbe C","MWh/a",{"$f":"+'Endenergiebedarf 2030'!$A$3","v":2030},{"$f":"+'Endenergiebedarf 2030'!C6","v":0}]
["Endenergiebedarf","Heizöl, fossil","Verarbeitendes Gewerbe C","MWh/a",{"$f":"+'Endenergiebedarf 2030'!$A$3","v":2030},{"$f":"+'Endenergiebedarf 2030'!D6","v":0}]
["Endenergiebedarf","Erdgas, fossil","Verarbeitendes Gewerbe C","MWh/a",{"$f":"+'Endenergiebedarf 2030'!$A$3","v":2030},{"$f":"+'Endenergiebedarf 2030'!E6","v":0}]
["Endenergiebedarf","Wasserstoff, inkl. Beimischung zu Erdgas","Verarbeitendes Gewerbe C","MWh/a",{"$f":"+'Endenergiebedarf 2030'!$A$3","v":2030},{"$f":"+'Endenergiebedarf 2030'!F6","v":0}]
["Endenergiebedarf","Synt. Brennstoffe (PtX)","Verarbeitendes Gewerbe C","MWh/a",{"$f":"+'Endenergiebedarf 2030'!$A$3","v":2030},{"$f":"+'Endenergiebedarf 2030'!G6","v":0}]
["Endenergiebedarf","Solarwärme","Verarbeitendes Gewerbe C","MWh/a",{"$f":"+'Endenergiebedarf 2030'!$A$3","v":2030},{"$f":"+'Endenergiebedarf 2030'!H6","v":0}]
["Endenergiebedarf","Biomasse","Verarbeitendes Gewerbe C","MWh/a",{"$f":"+'Endenergiebedarf 2030'!$A$3","v":2030},{"$f":"+'Endenergiebedarf 2030'!I6","v":0}]
["Endenergiebedarf","Luft-Wärmepumpe (Umweltwärme + WP-Strom)","Verarbeitendes Gewerbe C","MWh/a",{"$f":"+'Endenergiebedarf 2030'!$A$3","v":2030},{"$f":"+'Endenergiebedarf 2030'!J6","v":0}]
["Endenergiebedarf","Erdwärme-Wärmepumpe (Umweltwärme + WP-Strom)","Verarbeitendes Gewerbe C","MWh/a",{"$f":"+'Endenergiebedarf 2030'!$A$3","v":2030},{"$f":"+'Endenergiebedarf 2030'!K6","v":0}]
["Endenergiebedarf","Gewässer-Wärmepumpe (Umweltwärme + WP-Strom)","Verarbeitendes Gewerbe C","MWh/a",{"$f":"+'Endenergiebedarf 2030'!$A$3","v":2030},{"$f":"+'Endenergiebedarf 2030'!L6","v":0}]
["Endenergiebedarf","Direktstrom","Verarbeitendes Gewerbe C","MWh/a",{"$f":"+'Endenergiebedarf 2030'!$A$3","v":2030},{"$f":"+'Endenergiebedarf 2030'!M6","v":0}]
["Endenergiebedarf","Feste fossile Brennstoffe","Verarbeitendes Gewerbe C","MWh/a",{"$f":"+'Endenergiebedarf 2030'!$A$3","v":2030},{"$f":"+'Endenergiebedarf 2030'!N6","v":0}]
["Endenergiebedarf","Endenergiebedarf Wärme insgesamt","Verarbeitendes Gewerbe C","MWh/a",{"$f":"+'Endenergiebedarf 2030'!$A$3","v":2030},{"$f":"+'Endenergiebedarf 2030'!O6","v":0}]
["Endenergiebedarf","Strom (abzgl. WP-Strom und Direktheizung)","Kommunale Liegenschaften","MWh/a",{"$f":"+'Endenergiebedarf 2030'!$A$3","v":2030},{"$f":"+'Endenergiebedarf 2030'!B7","v":0}]
["Endenergiebedarf","Wärmenetze","Kommunale Liegenschaften","MWh/a",{"$f":"+'Endenergiebedarf 2030'!$A$3","v":2030},{"$f":"+'Endenergiebedarf 2030'!C7","v":0}]
["Endenergiebedarf","Heizöl, fossil","Kommunale Liegenschaften","MWh/a",{"$f":"+'Endenergiebedarf 2030'!$A$3","v":2030},{"$f":"+'Endenergiebedarf 2030'!D7","v":0}]
["Endenergiebedarf","Erdgas, fossil","Kommunale Liegenschaften","MWh/a",{"$f":"+'Endenergiebedarf 2030'!$A$3","v":2030},{"$f":"+'Endenergiebedarf 2030'!E7","v":0}]
["Endenergiebedarf","Wasserstoff, inkl. Beimischung zu Erdgas","Kommunale Liegenschaften","MWh/a",{"$f":"+'Endenergiebedarf 2030'!$A$3","v":2030},{"$f":"+'Endenergiebedarf 2030'!F7","v":0}]
["Endenergiebedarf","Synt. Brennstoffe (PtX)","Kommunale Liegenschaften","MWh/a",{"$f":"+'Endenergiebedarf 2030'!$A$3","v":2030},{"$f":"+'Endenergiebedarf 2030'!G7","v":0}]
["Endenergiebedarf","Solarwärme","Kommunale Liegenschaften","MWh/a",{"$f":"+'Endenergiebedarf 2030'!$A$3","v":2030},{"$f":"+'Endenergiebedarf 2030'!H7","v":0}]
["Endenergiebedarf","Biomasse","Kommunale Liegenschaften","MWh/a",{"$f":"+'Endenergiebedarf 2030'!$A$3","v":2030},{"$f":"+'Endenergiebedarf 2030'!I7","v":0}]
["Endenergiebedarf","Luft-Wärmepumpe (Umweltwärme + WP-Strom)","Kommunale Liegenschaften","MWh/a",{"$f":"+'Endenergiebedarf 2030'!$A$3","v":2030},{"$f":"+'Endenergiebedarf 2030'!J7","v":0}]
["Endenergiebedarf","Erdwärme-Wärmepumpe (Umweltwärme + WP-Strom)","Kommunale Liegenschaften","MWh/a",{"$f":"+'Endenergiebedarf 2030'!$A$3","v":2030},{"$f":"+'Endenergiebedarf 2030'!K7","v":0}]
["Endenergiebedarf","Gewässer-Wärmepumpe (Umweltwärme + WP-Strom)","Kommunale Liegenschaften","MWh/a",{"$f":"+'Endenergiebedarf 2030'!$A$3","v":2030},{"$f":"+'Endenergiebedarf 2030'!L7","v":0}]
["Endenergiebedarf","Direktstrom","Kommunale Liegenschaften","MWh/a",{"$f":"+'Endenergiebedarf 2030'!$A$3","v":2030},{"$f":"+'Endenergiebedarf 2030'!M7","v":0}]
["Endenergiebedarf","Direktstrom","Kommunale Liegenschaften","MWh/a",{"$f":"+'Endenergiebedarf 2030'!$A$3","v":2030},{"$f":"+'Endenergiebedarf 2030'!N7","v":0}]
["Endenergiebedarf","Endenergiebedarf Wärme insgesamt","Kommunale Liegenschaften","MWh/a",{"$f":"+'Endenergiebedarf 2030'!$A$3","v":2030},{"$f":"+'Endenergiebedarf 2030'!O7","v":0}]
["Endenergiebedarf","Strom (abzgl. WP-Strom und Direktheizung)","Sektoren insgesamt","MWh/a",{"$f":"+'Endenergiebedarf 2030'!$A$3","v":2030},{"$f":"+'Endenergiebedarf 2030'!B8","v":0}]
["Endenergiebedarf","Wärmenetze","Sektoren insgesamt","MWh/a",{"$f":"+'Endenergiebedarf 2030'!$A$3","v":2030},{"$f":"+'Endenergiebedarf 2030'!C8","v":0}]
["Endenergiebedarf","Heizöl, fossil","Sektoren insgesamt","MWh/a",{"$f":"+'Endenergiebedarf 2030'!$A$3","v":2030},{"$f":"+'Endenergiebedarf 2030'!D8","v":0}]
["Endenergiebedarf","Erdgas, fossil","Sektoren insgesamt","MWh/a",{"$f":"+'Endenergiebedarf 2030'!$A$3","v":2030},{"$f":"+'Endenergiebedarf 2030'!E8","v":0}]
["Endenergiebedarf","Wasserstoff, inkl. Beimischung zu Erdgas","Sektoren insgesamt","MWh/a",{"$f":"+'Endenergiebedarf 2030'!$A$3","v":2030},{"$f":"+'Endenergiebedarf 2030'!F8","v":0}]
["Endenergiebedarf","Synt. Brennstoffe (PtX)","Sektoren insgesamt","MWh/a",{"$f":"+'Endenergiebedarf 2030'!$A$3","v":2030},{"$f":"+'Endenergiebedarf 2030'!G8","v":0}]
["Endenergiebedarf","Solarwärme","Sektoren insgesamt","MWh/a",{"$f":"+'Endenergiebedarf 2030'!$A$3","v":2030},{"$f":"+'Endenergiebedarf 2030'!H8","v":0}]
["Endenergiebedarf","Biomasse","Sektoren insgesamt","MWh/a",{"$f":"+'Endenergiebedarf 2030'!$A$3","v":2030},{"$f":"+'Endenergiebedarf 2030'!I8","v":0}]
["Endenergiebedarf","Luft-Wärmepumpe (Umweltwärme + WP-Strom)","Sektoren insgesamt","MWh/a",{"$f":"+'Endenergiebedarf 2030'!$A$3","v":2030},{"$f":"+'Endenergiebedarf 2030'!J8","v":0}]
["Endenergiebedarf","Erdwärme-Wärmepumpe (Umweltwärme + WP-Strom)","Sektoren insgesamt","MWh/a",{"$f":"+'Endenergiebedarf 2030'!$A$3","v":2030},{"$f":"+'Endenergiebedarf 2030'!K8","v":0}]
["Endenergiebedarf","Gewässer-Wärmepumpe (Umweltwärme + WP-Strom)","Sektoren insgesamt","MWh/a",{"$f":"+'Endenergiebedarf 2030'!$A$3","v":2030},{"$f":"+'Endenergiebedarf 2030'!L8","v":0}]
["Endenergiebedarf","Direktstrom","Sektoren insgesamt","MWh/a",{"$f":"+'Endenergiebedarf 2030'!$A$3","v":2030},{"$f":"+'Endenergiebedarf 2030'!M8","v":0}]
["Endenergiebedarf","Feste fossile Brennstoffe","Sektoren insgesamt","MWh/a",{"$f":"+'Endenergiebedarf 2030'!$A$3","v":2030},{"$f":"+'Endenergiebedarf 2030'!N8","v":0}]
["Endenergiebedarf","Endenergiebedarf Wärme insgesamt","Sektoren insgesamt","MWh/a",{"$f":"+'Endenergiebedarf 2030'!$A$3","v":2030},{"$f":"+'Endenergiebedarf 2030'!O8","v":0}]
["Endenergieeeinsatz zur Wärmeerzeugung","Heizöl, fossil","Wärmenetze","MWh/a",{"$f":"+'Endenergiebedarf 2030'!$A$3","v":2030},{"$f":"+'Endenergiebedarf 2030'!B14","v":0}]
["Endenergieeeinsatz zur Wärmeerzeugung","Erdgas, fossil","Wärmenetze","MWh/a",{"$f":"+'Endenergiebedarf 2030'!$A$3","v":2030},{"$f":"+'Endenergiebedarf 2030'!C14","v":0}]
["Endenergieeeinsatz zur Wärmeerzeugung","Steinkohle, Braunkohle","Wärmenetze","MWh/a",{"$f":"+'Endenergiebedarf 2030'!$A$3","v":2030},{"$f":"+'Endenergiebedarf 2030'!D14","v":0}]
["Endenergieeeinsatz zur Wärmeerzeugung","Wasserstoff","Wärmenetze","MWh/a",{"$f":"+'Endenergiebedarf 2030'!$A$3","v":2030},{"$f":"+'Endenergiebedarf 2030'!E14","v":0}]
["Endenergieeeinsatz zur Wärmeerzeugung","Synt. Brennstoffe","Wärmenetze","MWh/a",{"$f":"+'Endenergiebedarf 2030'!$A$3","v":2030},{"$f":"+'Endenergiebedarf 2030'!F14","v":0}]
["Endenergieeeinsatz zur Wärmeerzeugung","Biogas","Wärmenetze","MWh/a",{"$f":"+'Endenergiebedarf 2030'!$A$3","v":2030},{"$f":"+'Endenergiebedarf 2030'!G14","v":0}]
["Endenergieeeinsatz zur Wärmeerzeugung","Klärgas und Deponiegas","Wärmenetze","MWh/a",{"$f":"+'Endenergiebedarf 2030'!$A$3","v":2030},{"$f":"+'Endenergiebedarf 2030'!H14","v":0}]
["Endenergieeeinsatz zur Wärmeerzeugung","Solarwärme","Wärmenetze","MWh/a",{"$f":"+'Endenergiebedarf 2030'!$A$3","v":2030},{"$f":"+'Endenergiebedarf 2030'!I14","v":0}]
["Endenergieeeinsatz zur Wärmeerzeugung","Biomasse","Wärmenetze","MWh/a",{"$f":"+'Endenergiebedarf 2030'!$A$3","v":2030},{"$f":"+'Endenergiebedarf 2030'!J14","v":0}]
["Endenergieeeinsatz zur Wärmeerzeugung","Luft-Wärmepumpe (Umweltwärme + WP-Strom)","Wärmenetze","MWh/a",{"$f":"+'Endenergiebedarf 2030'!$A$3","v":2030},{"$f":"+'Endenergiebedarf 2030'!K14","v":0}]
["Endenergieeeinsatz zur Wärmeerzeugung","Erdwärme-Wärmepumpe (Umweltwärme + WP-Strom)","Wärmenetze","MWh/a",{"$f":"+'Endenergiebedarf 2030'!$A$3","v":2030},{"$f":"+'Endenergiebedarf 2030'!L14","v":0}]
["Endenergieeeinsatz zur Wärmeerzeugung","Gewässer-Wärmepumpe (Umweltwärme + WP-Strom)","Wärmenetze","MWh/a",{"$f":"+'Endenergiebedarf 2030'!$A$3","v":2030},{"$f":"+'Endenergiebedarf 2030'!M14","v":0}]
["Endenergieeeinsatz zur Wärmeerzeugung","Industrielle Abwärme (Niedertemp. + WP-Strom)","Wärmenetze","MWh/a",{"$f":"+'Endenergiebedarf 2030'!$A$3","v":2030},{"$f":"+'Endenergiebedarf 2030'!N14","v":0}]
["Endenergieeeinsatz zur Wärmeerzeugung","Industrielle Abwärme (Hochtemp. direkte Nutzung)","Wärmenetze","MWh/a",{"$f":"+'Endenergiebedarf 2030'!$A$3","v":2030},{"$f":"+'Endenergiebedarf 2030'!O14","v":0}]
["Endenergieeeinsatz zur Wärmeerzeugung","Abwasser-Wärmepumpe (Umweltwärme + WP-Strom)","Wärmenetze","MWh/a",{"$f":"+'Endenergiebedarf 2030'!$A$3","v":2030},{"$f":"+'Endenergiebedarf 2030'!P14","v":0}]
["Endenergieeeinsatz zur Wärmeerzeugung","Wärme Tiefe Geothermie","Wärmenetze","MWh/a",{"$f":"+'Endenergiebedarf 2030'!$A$3","v":2030},{"$f":"+'Endenergiebedarf 2030'!Q14","v":0}]
["Endenergieeeinsatz zur Wärmeerzeugung","Abfall","Wärmenetze","MWh/a",{"$f":"+'Endenergiebedarf 2030'!$A$3","v":2030},{"$f":"+'Endenergiebedarf 2030'!R14","v":0}]
["Endenergieeeinsatz zur Wärmeerzeugung","EE-Direktstrom","Wärmenetze","MWh/a",{"$f":"+'Endenergiebedarf 2030'!$A$3","v":2030},{"$f":"+'Endenergiebedarf 2030'!S14","v":0}]
["Endenergieeeinsatz zur Wärmeerzeugung","Sonstige fossile Brennstoffe","Wärmenetze","MWh/a",{"$f":"+'Endenergiebedarf 2030'!$A$3","v":2030},{"$f":"+'Endenergiebedarf 2030'!T14","v":0}]
["Endenergieeeinsatz zur Wärmeerzeugung","Sonstige erneuerbare Brennstoffe","Wärmenetze","MWh/a",{"$f":"+'Endenergiebedarf 2030'!$A$3","v":2030},{"$f":"+'Endenergiebedarf 2030'!U14","v":0}]
["Endenergieeeinsatz zur Wärmeerzeugung","Summe Wärmenetzerzezugung","Wärmenetze","MWh/a",{"$f":"+'Endenergiebedarf 2030'!$A$3","v":2030},{"$f":"+'Endenergiebedarf 2030'!V14","v":0}]
["KWK-Wärmeerzeugung","Energieträger insgesamt","Wärmenetze","MWh/a",{"$f":"+'Endenergiebedarf 2030'!$A$3","v":2030},{"$f":"+'Endenergiebedarf 2030'!W14","v":0}]
["KWK-Stromerzeugung","Energieträger insgesamt","Wärmenetze","MWh/a",{"$f":"+'Endenergiebedarf 2030'!$A$3","v":2030},{"$f":"+'Endenergiebedarf 2030'!X14","v":0}]
["Endenergiebedarf","Strom (abzgl. WP-Strom und Direktheizung)","Haushalte","MWh/a",{"$f":"+'Endenergiebedarf 2040'!$A$3","v":2040},{"$f":"+'Endenergiebedarf 2040'!B4","v":0}]
["Endenergiebedarf","Wärmenetze","Haushalte","MWh/a",{"$f":"+'Endenergiebedarf 2040'!$A$3","v":2040},{"$f":"+'Endenergiebedarf 2040'!C4","v":0}]
["Endenergiebedarf","Heizöl, fossil","Haushalte","MWh/a",{"$f":"+'Endenergiebedarf 2040'!$A$3","v":2040},{"$f":"+'Endenergiebedarf 2040'!D4","v":0}]
["Endenergiebedarf","Erdgas, fossil","Haushalte","MWh/a",{"$f":"+'Endenergiebedarf 2040'!$A$3","v":2040},{"$f":"+'Endenergiebedarf 2040'!E4","v":0}]
["Endenergiebedarf","Wasserstoff, inkl. Beimischung zu Erdgas","Haushalte","MWh/a",{"$f":"+'Endenergiebedarf 2040'!$A$3","v":2040},{"$f":"+'Endenergiebedarf 2040'!F4","v":0}]
["Endenergiebedarf","Synt. Brennstoffe (PtX)","Haushalte","MWh/a",{"$f":"+'Endenergiebedarf 2040'!$A$3","v":2040},{"$f":"+'Endenergiebedarf 2040'!G4","v":0}]
["Endenergiebedarf","Solarwärme","Haushalte","MWh/a",{"$f":"+'Endenergiebedarf 2040'!$A$3","v":2040},{"$f":"+'Endenergiebedarf 2040'!H4","v":0}]
["Endenergiebedarf","Biomasse","Haushalte","MWh/a",{"$f":"+'Endenergiebedarf 2040'!$A$3","v":2040},{"$f":"+'Endenergiebedarf 2040'!I4","v":0}]
["Endenergiebedarf","Luft-Wärmepumpe (Umweltwärme + WP-Strom)","Haushalte","MWh/a",{"$f":"+'Endenergiebedarf 2040'!$A$3","v":2040},{"$f":"+'Endenergiebedarf 2040'!J4","v":0}]
["Endenergiebedarf","Erdwärme-Wärmepumpe (Umweltwärme + WP-Strom)","Haushalte","MWh/a",{"$f":"+'Endenergiebedarf 2040'!$A$3","v":2040},{"$f":"+'Endenergiebedarf 2040'!K4","v":0}]
["Endenergiebedarf","Gewässer-Wärmepumpe (Umweltwärme + WP-Strom)","Haushalte","MWh/a",{"$f":"+'Endenergiebedarf 2040'!$A$3","v":2040},{"$f":"+'Endenergiebedarf 2040'!L4","v":0}]
["Endenergiebedarf","Direktstrom","Haushalte","MWh/a",{"$f":"+'Endenergiebedarf 2040'!$A$3","v":2040},{"$f":"+'Endenergiebedarf 2040'!M4","v":0}]
["Endenergiebedarf","Feste fossile Brennstoffe","Haushalte","MWh/a",{"$f":"+'Endenergiebedarf 2040'!$A$3","v":2040},{"$f":"+'Endenergiebedarf 2040'!N4","v":0}]
["Endenergiebedarf","Endenergiebedarf Wärme insgesamt","Haushalte","MWh/a",{"$f":"+'Endenergiebedarf 2040'!$A$3","v":2040},{"$f":"+'Endenergiebedarf 2040'!O4","v":0}]
["Endenergiebedarf","Strom (abzgl. WP-Strom und Direktheizung)","Gewerbe Handel Dienstleistungen","MWh/a",{"$f":"+'Endenergiebedarf 2040'!$A$3","v":2040},{"$f":"+'Endenergiebedarf 2040'!B5","v":0}]
["Endenergiebedarf","Wärmenetze","Gewerbe Handel Dienstleistungen","MWh/a",{"$f":"+'Endenergiebedarf 2040'!$A$3","v":2040},{"$f":"+'Endenergiebedarf 2040'!C5","v":0}]
["Endenergiebedarf","Heizöl, fossil","Gewerbe Handel Dienstleistungen","MWh/a",{"$f":"+'Endenergiebedarf 2040'!$A$3","v":2040},{"$f":"+'Endenergiebedarf 2040'!D5","v":0}]
["Endenergiebedarf","Erdgas, fossil","Gewerbe Handel Dienstleistungen","MWh/a",{"$f":"+'Endenergiebedarf 2040'!$A$3","v":2040},{"$f":"+'Endenergiebedarf 2040'!E5","v":0}]
["Endenergiebedarf","Wasserstoff, inkl. Beimischung zu Erdgas","Gewerbe Handel Dienstleistungen","MWh/a",{"$f":"+'Endenergiebedarf 2040'!$A$3","v":2040},{"$f":"+'Endenergiebedarf 2040'!F5","v":0}]
["Endenergiebedarf","Synt. Brennstoffe (PtX)","Gewerbe Handel Dienstleistungen","MWh/a",{"$f":"+'Endenergiebedarf 2040'!$A$3","v":2040},{"$f":"+'Endenergiebedarf 2040'!G5","v":0}]
["Endenergiebedarf","Solarwärme","Gewerbe Handel Dienstleistungen","MWh/a",{"$f":"+'Endenergiebedarf 2040'!$A$3","v":2040},{"$f":"+'Endenergiebedarf 2040'!H5","v":0}]
["Endenergiebedarf","Biomasse","Gewerbe Handel Dienstleistungen","MWh/a",{"$f":"+'Endenergiebedarf 2040'!$A$3","v":2040},{"$f":"+'Endenergiebedarf 2040'!I5","v":0}]
["Endenergiebedarf","Luft-Wärmepumpe (Umweltwärme + WP-Strom)","Gewerbe Handel Dienstleistungen","MWh/a",{"$f":"+'Endenergiebedarf 2040'!$A$3","v":2040},{"$f":"+'Endenergiebedarf 2040'!J5","v":0}]
["Endenergiebedarf","Erdwärme-Wärmepumpe (Umweltwärme + WP-Strom)","Gewerbe Handel Dienstleistungen","MWh/a",{"$f":"+'Endenergiebedarf 2040'!$A$3","v":2040},{"$f":"+'Endenergiebedarf 2040'!K5","v":0}]
["Endenergiebedarf","Gewässer-Wärmepumpe (Umweltwärme + WP-Strom)","Gewerbe Handel Dienstleistungen","MWh/a",{"$f":"+'Endenergiebedarf 2040'!$A$3","v":2040},{"$f":"+'Endenergiebedarf 2040'!L5","v":0}]
["Endenergiebedarf","Direktstrom","Gewerbe Handel Dienstleistungen","MWh/a",{"$f":"+'Endenergiebedarf 2040'!$A$3","v":2040},{"$f":"+'Endenergiebedarf 2040'!M5","v":0}]
["Endenergiebedarf","Feste fossile Brennstoffe","Gewerbe Handel Dienstleistungen","MWh/a",{"$f":"+'Endenergiebedarf 2040'!$A$3","v":2040},{"$f":"+'Endenergiebedarf 2040'!N5","v":0}]
["Endenergiebedarf","Endenergiebedarf Wärme insgesamt","Gewerbe Handel Dienstleistungen","MWh/a",{"$f":"+'Endenergiebedarf 2040'!$A$3","v":2040},{"$f":"+'Endenergiebedarf 2040'!O5","v":0}]
["Endenergiebedarf","Strom (abzgl. WP-Strom und Direktheizung)","Verarbeitendes Gewerbe C","MWh/a",{"$f":"+'Endenergiebedarf 2040'!$A$3","v":2040},{"$f":"+'Endenergiebedarf 2040'!B6","v":0}]
["Endenergiebedarf","Wärmenetze","Verarbeitendes Gewerbe C","MWh/a",{"$f":"+'Endenergiebedarf 2040'!$A$3","v":2040},{"$f":"+'Endenergiebedarf 2040'!C6","v":0}]
["Endenergiebedarf","Heizöl, fossil","Verarbeitendes Gewerbe C","MWh/a",{"$f":"+'Endenergiebedarf 2040'!$A$3","v":2040},{"$f":"+'Endenergiebedarf 2040'!D6","v":0}]
["Endenergiebedarf","Erdgas, fossil","Verarbeitendes Gewerbe C","MWh/a",{"$f":"+'Endenergiebedarf 2040'!$A$3","v":2040},{"$f":"+'Endenergiebedarf 2040'!E6","v":0}]
["Endenergiebedarf","Wasserstoff, inkl. Beimischung zu Erdgas","Verarbeitendes Gewerbe C","MWh/a",{"$f":"+'Endenergiebedarf 2040'!$A$3","v":2040},{"$f":"+'Endenergiebedarf 2040'!F6","v":0}]
["Endenergiebedarf","Synt. Brennstoffe (PtX)","Verarbeitendes Gewerbe C","MWh/a",{"$f":"+'Endenergiebedarf 2040'!$A$3","v":2040},{"$f":"+'Endenergiebedarf 2040'!G6","v":0}]
["Endenergiebedarf","Solarwärme","Verarbeitendes Gewerbe C","MWh/a",{"$f":"+'Endenergiebedarf 2040'!$A$3","v":2040},{"$f":"+'Endenergiebedarf 2040'!H6","v":0}]
["Endenergiebedarf","Biomasse","Verarbeitendes Gewerbe C","MWh/a",{"$f":"+'Endenergiebedarf 2040'!$A$3","v":2040},{"$f":"+'Endenergiebedarf 2040'!I6","v":0}]
["Endenergiebedarf","Luft-Wärmepumpe (Umweltwärme + WP-Strom)","Verarbeitendes Gewerbe C","MWh/a",{"$f":"+'Endenergiebedarf 2040'!$A$3","v":2040},{"$f":"+'Endenergiebedarf 2040'!J6","v":0}]
["Endenergiebedarf","Erdwärme-Wärmepumpe (Umweltwärme + WP-Strom)","Verarbeitendes Gewerbe C","MWh/a",{"$f":"+'Endenergiebedarf 2040'!$A$3","v":2040},{"$f":"+'Endenergiebedarf 2040'!K6","v":0}]
["Endenergiebedarf","Gewässer-Wärmepumpe (Umweltwärme + WP-Strom)","Verarbeitendes Gewerbe C","MWh/a",{"$f":"+'Endenergiebedarf 2040'!$A$3","v":2040},{"$f":"+'Endenergiebedarf 2040'!L6","v":0}]
["Endenergiebedarf","Direktstrom","Verarbeitendes Gewerbe C","MWh/a",{"$f":"+'Endenergiebedarf 2040'!$A$3","v":2040},{"$f":"+'Endenergiebedarf 2040'!M6","v":0}]
["Endenergiebedarf","Feste fossile Brennstoffe","Verarbeitendes Gewerbe C","MWh/a",{"$f":"+'Endenergiebedarf 2040'!$A$3","v":2040},{"$f":"+'Endenergiebedarf 2040'!N6","v":0}]
["Endenergiebedarf","Endenergiebedarf Wärme insgesamt","Verarbeitendes Gewerbe C","MWh/a",{"$f":"+'Endenergiebedarf 2040'!$A$3","v":2040},{"$f":"+'Endenergiebedarf 2040'!O6","v":0}]
["Endenergiebedarf","Strom (abzgl. WP-Strom und Direktheizung)","Kommunale Liegenschaften","MWh/a",{"$f":"+'Endenergiebedarf 2040'!$A$3","v":2040},{"$f":"+'Endenergiebedarf 2040'!B7","v":0}]
["Endenergiebedarf","Wärmenetze","Kommunale Liegenschaften","MWh/a",{"$f":"+'Endenergiebedarf 2040'!$A$3","v":2040},{"$f":"+'Endenergiebedarf 2040'!C7","v":0}]
["Endenergiebedarf","Heizöl, fossil","Kommunale Liegenschaften","MWh/a",{"$f":"+'Endenergiebedarf 2040'!$A$3","v":2040},{"$f":"+'Endenergiebedarf 2040'!D7","v":0}]
["Endenergiebedarf","Erdgas, fossil","Kommunale Liegenschaften","MWh/a",{"$f":"+'Endenergiebedarf 2040'!$A$3","v":2040},{"$f":"+'Endenergiebedarf 2040'!E7","v":0}]
["Endenergiebedarf","Wasserstoff, inkl. Beimischung zu Erdgas","Kommunale Liegenschaften","MWh/a",{"$f":"+'Endenergiebedarf 2040'!$A$3","v":2040},{"$f":"+'Endenergiebedarf 2040'!F7","v":0}]
["Endenergiebedarf","Synt. Brennstoffe (PtX)","Kommunale Liegenschaften","MWh/a",{"$f":"+'Endenergiebedarf 2040'!$A$3","v":2040},{"$f":"+'Endenergiebedarf 2040'!G7","v":0}]
["Endenergiebedarf","Solarwärme","Kommunale Liegenschaften","MWh/a",{"$f":"+'Endenergiebedarf 2040'!$A$3","v":2040},{"$f":"+'Endenergiebedarf 2040'!H7","v":0}]
["Endenergiebedarf","Biomasse","Kommunale Liegenschaften","MWh/a",{"$f":"+'Endenergiebedarf 2040'!$A$3","v":2040},{"$f":"+'Endenergiebedarf 2040'!I7","v":0}]
["Endenergiebedarf","Luft-Wärmepumpe (Umweltwärme + WP-Strom)","Kommunale Liegenschaften","MWh/a",{"$f":"+'Endenergiebedarf 2040'!$A$3","v":2040},{"$f":"+'Endenergiebedarf 2040'!J7","v":0}]
["Endenergiebedarf","Erdwärme-Wärmepumpe (Umweltwärme + WP-Strom)","Kommunale Liegenschaften","MWh/a",{"$f":"+'Endenergiebedarf 2040'!$A$3","v":2040},{"$f":"+'Endenergiebedarf 2040'!K7","v":0}]
["Endenergiebedarf","Gewässer-Wärmepumpe (Umweltwärme + WP-Strom)","Kommunale Liegenschaften","MWh/a",{"$f":"+'Endenergiebedarf 2040'!$A$3","v":2040},{"$f":"+'Endenergiebedarf 2040'!L7","v":0}]
["Endenergiebedarf","Direktstrom","Kommunale Liegenschaften","MWh/a",{"$f":"+'Endenergiebedarf 2040'!$A$3","v":2040},{"$f":"+'Endenergiebedarf 2040'!M7","v":0}]
["Endenergiebedarf","Feste fossile Brennstoffe","Kommunale Liegenschaften","MWh/a",{"$f":"+'Endenergiebedarf 2040'!$A$3","v":2040},{"$f":"+'Endenergiebedarf 2040'!N7","v":0}]
["Endenergiebedarf","Endenergiebedarf Wärme insgesamt","Kommunale Liegenschaften","MWh/a",{"$f":"+'Endenergiebedarf 2040'!$A$3","v":2040},{"$f":"+'Endenergiebedarf 2040'!O7","v":0}]
["Endenergiebedarf","Strom (abzgl. WP-Strom und Direktheizung)","Sektoren insgesamt","MWh/a",{"$f":"+'Endenergiebedarf 2040'!$A$3","v":2040},{"$f":"+'Endenergiebedarf 2040'!B8","v":0}]
["Endenergiebedarf","Wärmenetze","Sektoren insgesamt","MWh/a",{"$f":"+'Endenergiebedarf 2040'!$A$3","v":2040},{"$f":"+'Endenergiebedarf 2040'!C8","v":0}]
["Endenergiebedarf","Heizöl, fossil","Sektoren insgesamt","MWh/a",{"$f":"+'Endenergiebedarf 2040'!$A$3","v":2040},{"$f":"+'Endenergiebedarf 2040'!D8","v":0}]
["Endenergiebedarf","Erdgas, fossil","Sektoren insgesamt","MWh/a",{"$f":"+'Endenergiebedarf 2040'!$A$3","v":2040},{"$f":"+'Endenergiebedarf 2040'!E8","v":0}]
["Endenergiebedarf","Wasserstoff, inkl. Beimischung zu Erdgas","Sektoren insgesamt","MWh/a",{"$f":"+'Endenergiebedarf 2040'!$A$3","v":2040},{"$f":"+'Endenergiebedarf 2040'!F8","v":0}]
["Endenergiebedarf","Synt. Brennstoffe (PtX)","Sektoren insgesamt","MWh/a",{"$f":"+'Endenergiebedarf 2040'!$A$3","v":2040},{"$f":"+'Endenergiebedarf 2040'!G8","v":0}]
["Endenergiebedarf","Solarwärme","Sektoren insgesamt","MWh/a",{"$f":"+'Endenergiebedarf 2040'!$A$3","v":2040},{"$f":"+'Endenergiebedarf 2040'!H8","v":0}]
["Endenergiebedarf","Biomasse","Sektoren insgesamt","MWh/a",{"$f":"+'Endenergiebedarf 2040'!$A$3","v":2040},{"$f":"+'Endenergiebedarf 2040'!I8","v":0}]
["Endenergiebedarf","Luft-Wärmepumpe (Umweltwärme + WP-Strom)","Sektoren insgesamt","MWh/a",{"$f":"+'Endenergiebedarf 2040'!$A$3","v":2040},{"$f":"+'Endenergiebedarf 2040'!J8","v":0}]
["Endenergiebedarf","Erdwärme-Wärmepumpe (Umweltwärme + WP-Strom)","Sektoren insgesamt","MWh/a",{"$f":"+'Endenergiebedarf 2040'!$A$3","v":2040},{"$f":"+'Endenergiebedarf 2040'!K8","v":0}]
["Endenergiebedarf","Gewässer-Wärmepumpe (Umweltwärme + WP-Strom)","Sektoren insgesamt","MWh/a",{"$f":"+'Endenergiebedarf 2040'!$A$3","v":2040},{"$f":"+'Endenergiebedarf 2040'!L8","v":0}]
["Endenergiebedarf","Direktstrom","Sektoren insgesamt","MWh/a",{"$f":"+'Endenergiebedarf 2040'!$A$3","v":2040},{"$f":"+'Endenergiebedarf 2040'!M8","v":0}]
["Endenergiebedarf","Feste fossile Brennstoffe","Sektoren insgesamt","MWh/a",{"$f":"+'Endenergiebedarf 2040'!$A$3","v":2040},{"$f":"+'Endenergiebedarf 2040'!N8","v":0}]
["Endenergiebedarf","Endenergiebedarf Wärme insgesamt","Sektoren insgesamt","MWh/a",{"$f":"+'Endenergiebedarf 2040'!$A$3","v":2040},{"$f":"+'Endenergiebedarf 2040'!O8","v":0}]
["Endenergieeeinsatz zur Wärmeerzeugung","Heizöl, fossil","Wärmenetze","MWh/a",{"$f":"+'Endenergiebedarf 2040'!$A$3","v":2040},{"$f":"+'Endenergiebedarf 2040'!B14","v":0}]
["Endenergieeeinsatz zur Wärmeerzeugung","Erdgas, fossil","Wärmenetze","MWh/a",{"$f":"+'Endenergiebedarf 2040'!$A$3","v":2040},{"$f":"+'Endenergiebedarf 2040'!C14","v":0}]
["Endenergieeeinsatz zur Wärmeerzeugung","Steinkohle, Braunkohle","Wärmenetze","MWh/a",{"$f":"+'Endenergiebedarf 2040'!$A$3","v":2040},{"$f":"+'Endenergiebedarf 2040'!D14","v":0}]
["Endenergieeeinsatz zur Wärmeerzeugung","Wasserstoff","Wärmenetze","MWh/a",{"$f":"+'Endenergiebedarf 2040'!$A$3","v":2040},{"$f":"+'Endenergiebedarf 2040'!E14","v":0}]
["Endenergieeeinsatz zur Wärmeerzeugung","Synt. Brennstoffe","Wärmenetze","MWh/a",{"$f":"+'Endenergiebedarf 2040'!$A$3","v":2040},{"$f":"+'Endenergiebedarf 2040'!F14","v":0}]
["Endenergieeeinsatz zur Wärmeerzeugung","Biogas","Wärmenetze","MWh/a",{"$f":"+'Endenergiebedarf 2040'!$A$3","v":2040},{"$f":"+'Endenergiebedarf 2040'!G14","v":0}]
["Endenergieeeinsatz zur Wärmeerzeugung","Klärgas und Deponiegas","Wärmenetze","MWh/a",{"$f":"+'Endenergiebedarf 2040'!$A$3","v":2040},{"$f":"+'Endenergiebedarf 2040'!H14","v":0}]
["Endenergieeeinsatz zur Wärmeerzeugung","Solarwärme","Wärmenetze","MWh/a",{"$f":"+'Endenergiebedarf 2040'!$A$3","v":2040},{"$f":"+'Endenergiebedarf 2040'!I14","v":0}]
["Endenergieeeinsatz zur Wärmeerzeugung","Biomasse","Wärmenetze","MWh/a",{"$f":"+'Endenergiebedarf 2040'!$A$3","v":2040},{"$f":"+'Endenergiebedarf 2040'!J14","v":0}]
["Endenergieeeinsatz zur Wärmeerzeugung","Luft-Wärmepumpe (Umweltwärme + WP-Strom)","Wärmenetze","MWh/a",{"$f":"+'Endenergiebedarf 2040'!$A$3","v":2040},{"$f":"+'Endenergiebedarf 2040'!K14","v":0}]
["Endenergieeeinsatz zur Wärmeerzeugung","Erdwärme-Wärmepumpe (Umweltwärme + WP-Strom)","Wärmenetze","MWh/a",{"$f":"+'Endenergiebedarf 2040'!$A$3","v":2040},{"$f":"+'Endenergiebedarf 2040'!L14","v":0}]
["Endenergieeeinsatz zur Wärmeerzeugung","Gewässer-Wärmepumpe (Umweltwärme + WP-Strom)","Wärmenetze","MWh/a",{"$f":"+'Endenergiebedarf 2040'!$A$3","v":2040},{"$f":"+'Endenergiebedarf 2040'!M14","v":0}]
["Endenergieeeinsatz zur Wärmeerzeugung","Industrielle Abwärme (Niedertemp. + WP-Strom)","Wärmenetze","MWh/a",{"$f":"+'Endenergiebedarf 2040'!$A$3","v":2040},{"$f":"+'Endenergiebedarf 2040'!N14","v":0}]
["Endenergieeeinsatz zur Wärmeerzeugung","Industrielle Abwärme (Hochtemp. direkte Nutzung)","Wärmenetze","MWh/a",{"$f":"+'Endenergiebedarf 2040'!$A$3","v":2040},{"$f":"+'Endenergiebedarf 2040'!O14","v":0}]
["Endenergieeeinsatz zur Wärmeerzeugung","Abwasser-Wärmepumpe (Umweltwärme + WP-Strom)","Wärmenetze","MWh/a",{"$f":"+'Endenergiebedarf 2040'!$A$3","v":2040},{"$f":"+'Endenergiebedarf 2040'!P14","v":0}]
["Endenergieeeinsatz zur Wärmeerzeugung","Wärme Tiefe Geothermie","Wärmenetze","MWh/a",{"$f":"+'Endenergiebedarf 2040'!$A$3","v":2040},{"$f":"+'Endenergiebedarf 2040'!Q14","v":0}]
["Endenergieeeinsatz zur Wärmeerzeugung","Abfall","Wärmenetze","MWh/a",{"$f":"+'Endenergiebedarf 2040'!$A$3","v":2040},{"$f":"+'Endenergiebedarf 2040'!R14","v":0}]
["Endenergieeeinsatz zur Wärmeerzeugung","EE-Direktstrom","Wärmenetze","MWh/a",{"$f":"+'Endenergiebedarf 2040'!$A$3","v":2040},{"$f":"+'Endenergiebedarf 2040'!S14","v":0}]
["Endenergieeeinsatz zur Wärmeerzeugung","Sonstige fossile Brennstoffe","Wärmenetze","MWh/a",{"$f":"+'Endenergiebedarf 2040'!$A$3","v":2040},{"$f":"+'Endenergiebedarf 2040'!T14","v":0}]
["Endenergieeeinsatz zur Wärmeerzeugung","Sonstige erneuerbare Brennstoffe","Wärmenetze","MWh/a",{"$f":"+'Endenergiebedarf 2040'!$A$3","v":2040},{"$f":"+'Endenergiebedarf 2040'!U14","v":0}]
["Endenergieeeinsatz zur Wärmeerzeugung","Summe Wärmenetzerzezugung","Wärmenetze","MWh/a",{"$f":"+'Endenergiebedarf 2040'!$A$3","v":2040},{"$f":"+'Endenergiebedarf 2040'!V14","v":0}]
["KWK-Wärmeerzeugung","Energieträger insgesamt","Wärmenetze","MWh/a",{"$f":"+'Endenergiebedarf 2040'!$A$3","v":2040},{"$f":"+'Endenergiebedarf 2040'!W14","v":0}]
["KWK-Stromerzeugung","Energieträger insgesamt","Wärmenetze","MWh/a",{"$f":"+'Endenergiebedarf 2040'!$A$3","v":2040},{"$f":"+'Endenergiebedarf 2040'!X14","v":0}]